Cogmind - Beta 16 @@@ ROGUE MODE // 2026.01.20 @ 22:43:04 Player: FrigidRock Result: Escaped! Performance ------------- Evolutions (9) 4500 Regions Visited (30) 6000 Robots Destroyed (267) 1335 Value Destroyed (19315) 19315 Prototype IDs (31) 620 Alien Tech Used (2) 400 Bonus (22612) 22612 TOTAL SCORE: 54782 Bonus ------- High Alert Combat Kills 2588 Follower Combat Kills 9465 Entered Garrisons 1800 Used RIF Installer 5500 Met Zhirov 300 Win 3000 Friendly Fire -41 Cogmind --------- Core Integrity 1116/1600 Matter 104/300 Energy 150/150 System Corruption 30% Temperature Cool (1) Movement Flying (60) Location To Epsilon Eridani Parts ------- > --- POWER (2) -------- Micro Antimatter Reactor > --- PROPULSION (6) --- Biometal Leg Centrium Leg Improved Antigrav System Improved Antigrav System Field Propulsion Array > --- UTILITY (14) ----- Advanced Heat Sink Advanced Coolant Injector Core Analyzer System Shield Relay Coupler [C] (19) Relay Coupler [Sentry] (1) Relay Coupler [Sentry] (43) Relay Coupler [Demolisher] (59) Relay Coupler [Specialist] (16) Relay Coupler [Hunter] (41) Relay Coupler [Hunter] (12) Relay Coupler [Behemoth] (21) > --- WEAPON (3) ------- Advanced Remote Datajack > --- INVENTORY (5) ---- Light Quantum Reactor Improved Propulsion Shielding Relay Coupler [Behemoth] (32) Enhanced Nova Cannon Improved Plasma Cutter Peak State ------------ > --- POWER ------------ Reinforced Antimatter Reactor Light Quantum Reactor > --- PROPULSION ------- Myomer Leg Myomer Leg Myomer Leg Biometal Leg Biometal Leg Biometal Leg > --- UTILITY ---------- Advanced Heat Sink High-capacity Storage Unit Improved Core Shielding Improved Core Shielding Relay Coupler [NC] Relay Coupler [C] Relay Coupler [C] Relay Coupler [C] Relay Coupler [Sentry] Relay Coupler [Demolisher] Relay Coupler [Specialist] Relay Coupler [Specialist] Relay Coupler [Hunter] Relay Coupler [Hunter] > --- WEAPON ----------- Phase Gun Linear Accelerator Enhanced Hardcell Cannon > --- INVENTORY -------- Quantum Reactor Light Quantum Reactor Light Quantum Reactor Myomer Leg Relay Coupler [Sentry] Relay Coupler [Specialist] Relay Coupler [Hunter] Relay Coupler [Heavy] Relay Coupler [Behemoth] Relay Coupler [Behemoth] Gamma Rifle Heavy Mass Driver Advanced Concussive RPG Guided Micro-nuke Launcher Advanced Remote Datajack Improved Plasma Cutter Power Sword [Rating: 168] Favorites ----------- Power Particle Reactor Engine Reinforced Deuterium Engine Power Core Light Nuclear Core Reactor Particle Reactor Propulsion Centrium Leg Treads Light Treads Leg Centrium Leg Wheel Compact Wheel Hover Unit Combat Gravmag System Flight Unit Impulse Thruster Utility Relay Coupler [Hunter] Device Advanced Heat Sink Storage High-capacity Storage Unit Processor Advanced Targeting Computer Hackware Relay Coupler [Hunter] Protection Improved Medium Armor Plating Weapon Hypervelocity Gauss Cannon Energy Gun Arc Projector Energy Cannon Compact HERF Cannon Ballistic Gun Heavy Assault Rifle Ballistic Cannon Hypervelocity Gauss Cannon Launcher Proton Missile Launcher Special Weapon Improved Remote Datajack Impact Weapon Impact Mace Slashing Weapon Chainsword Piercing Weapon Enhanced Force Lance Special Melee Weapon Improved Datajack Build | -11 -10 -10 -10 -9 -8 -8 -8 -8 -7 -7 -6 -6 -6 -6 -5 -5 -5 -5 -5 -5 -4 -4 -4 -4 -3 -3 -3 -2 -2 -1 ------- Run | Yrd Mat Min Exi Min Mat Gar Mat Gar Fac Gar Fac Gar Fac Gar Fac Gar Fac Gar Fac Gar Fac Upp Upp Zhi Pro Res Arm Res Gar Acc Slots Evolved 18 | . . . . . 4 . . . 2 . 2 . . . 2 . . . . . 2 . . . . 2 . 2 . 2 Power 1 | . . . . . . . . . . . . . . . . . . . . . . . . . . 1 . . . . Propulsion 4 | . . . . . 2 . . . . . . . . . . . . . . . 1 . . . . . . 1 . . Utility 12 | . . . . . 1 . . . 2 . 2 . . . 2 . . . . . 1 . . . . 1 . 1 . 2 Weapon 1 | . . . . . 1 . . . . . . . . . . . . . . . . . . . . . . . . . Parts Attached 391 | 6 6 4 . 7 21 9 13 16 11 18 14 20 1 7 10 26 8 10 . 14 3 . 3 2 2 23 44 8 50 35 Power 32 | 1 1 . . . 3 1 1 2 . 4 . 1 . . 1 2 . 2 . 2 . . . . . 1 1 2 4 3 Engine 11 | 1 1 . . . 2 1 1 1 . 3 . . . . . . . . . . . . . . . . . . 1 . Core 2 | . . . . . 1 . . 1 . . . . . . . . . . . . . . . . . . . . . . Reactor 19 | . . . . . . . . . . 1 . 1 . . 1 2 . 2 . 2 . . . . . 1 1 2 3 3 Propulsion 104 | 2 . 1 . 1 6 4 1 6 7 7 6 3 . . 4 8 . . . 1 1 . . 1 . 7 13 2 12 11 Treads 34 | 2 . 1 . 1 2 . . 4 5 4 . . . . . 4 . . . . . . . . . 1 6 . 4 . Leg 54 | . . . . . 4 4 1 2 1 1 6 3 . . 4 4 . . . 1 1 . . 1 . 6 2 . 8 5 Wheel 2 | . . . . . . . . . . . . . . . . . . . . . . . . . . . . . . 2 Hover 6 | . . . . . . . . . 1 2 . . . . . . . . . . . . . . . . . . . 3 Flight 8 | . . . . . . . . . . . . . . . . . . . . . . . . . . . 5 2 . 1 Utility 164 | 1 2 1 . 3 5 4 6 5 3 6 4 11 . 6 3 10 2 7 . 9 1 . 2 1 2 11 20 3 23 13 Device 41 | . 2 . . 3 . . 2 . . . . . . . . . . 1 . . . . 2 . 1 8 6 1 11 4 Storage 7 | 1 . . . . 2 . 1 . . . . 1 . . . . . . . . . . . . . 1 . 1 . . Processor 10 | . . . . . 1 . . . 1 . . . . . . . . . . . . . . . . 1 3 1 2 1 Hackware 74 | . . . . . 1 . 3 2 1 6 2 10 . 5 . 8 2 5 . 8 . . . . 1 . 7 . 7 6 Protection 32 | . . 1 . . 1 4 . 3 1 . 2 . . 1 3 2 . 1 . 1 1 . . 1 . 1 4 . 3 2 Artifact . | . . . . . . . . . . . . . . . . . . . . . . . . . . . . . . . Weapon 91 | 2 3 2 . 3 7 . 5 3 1 1 4 5 1 1 2 6 6 1 . 2 1 . 1 . . 4 10 1 11 8 Energy Gun 19 | 2 3 1 . . . . . . . . 2 . . . . . 1 . . . . . . . . 1 3 . 5 1 Energy Cannon 6 | . . . . . 1 . . . . . . 2 . . . 1 . . . . . . . . . . 1 . . 1 Ballistic Gun 9 | . . 1 . 1 3 . . . . . . . . . 1 . . . . . . . . . . 1 1 . 1 . Ballistic Cannon 13 | . . . . . . . . . . . . . . 1 . 1 3 . . 1 . . 1 . . 1 . . 2 3 Launcher 13 | . . . . 2 . . 1 3 . . 1 1 . . . 1 . . . . 1 . . . . . . 1 1 1 Special Weapon 12 | . . . . . . . . . . 1 1 . 1 . . 1 1 1 . 1 . . . . . 1 1 . 1 2 Impact Weapon 3 | . . . . . . . . . . . . . . . . 2 . . . . . . . . . . 1 . . . Slashing Weapon 10 | . . . . . 1 . 3 . 1 . . . . . . . 1 . . . . . . . . . 3 . 1 . Piercing Weapon 3 | . . . . . 2 . . . . . . 1 . . . . . . . . . . . . . . . . . . Special Melee Weapon 3 | . . . . . . . 1 . . . . 1 . . 1 . . . . . . . . . . . . . . . Unidentified Prototypes 17 | . . . . . 2 . 2 . . . 1 . . . . 1 . 1 . . . . . 3 . 5 . 1 . 1 Corrupted Parts 3 | . . . . . . . . . . . . . . . . . . . . . . . . . . . . . 3 . System Corruption 19 | . . . . . . . . . . . . . . . . . . . . . . . . . . . . . 19 . Parts Lost 142 | . 2 1 . 3 . 6 1 9 7 7 . 1 . . 2 10 . 1 . 1 . . 1 . 1 8 24 7 17 33 Power 13 | . . . . . . 1 . 1 1 2 . . . . 1 1 . . . . . . . . . . 2 . . 4 Propulsion 46 | . . . . 1 . 3 1 6 4 3 . . . . . 3 . . . 1 . . . . . 1 5 3 4 11 Utility 57 | . 1 . . 1 . 2 . . 2 1 . . . . . 5 . 1 . . . . 1 . 1 4 13 4 10 11 Weapon 26 | . 1 1 . 1 . . . 2 . 1 . 1 . . 1 1 . . . . . . . . . 3 4 . 3 7 Highest Loss Streak 20 | . 2 1 . 3 . 3 1 2 5 3 . 1 . . 1 6 . 1 . 1 . . 1 . 1 4 14 4 8 20 To Critical Strikes 1 | . . . . . . 1 . . . . . . . . . . . . . . . . . . . . . . . . Average Backups 14 | 1 6 7 7 7 12 14 14 14 13 13 13 15 19 18 18 15 14 18 19 19 18 17 17 18 18 17 17 4 14 8 Power 1 | . . 1 1 1 1 1 1 . 1 . 1 1 2 2 1 . 1 1 2 2 2 2 2 2 2 1 . 1 1 1 Propulsion 1 | . 2 1 2 . . 1 . . . . . 1 2 2 2 1 2 2 2 1 2 2 2 2 2 3 5 . 3 . Utility 6 | . . . . 1 4 6 7 8 7 7 7 8 11 10 10 8 7 7 8 10 9 8 8 8 7 6 6 1 4 3 Weapon 3 | . 4 4 4 4 4 3 4 5 4 4 3 2 3 2 2 3 3 4 5 3 2 2 2 3 3 3 2 . 3 1 Tool/Special . | . . . . . . . . . . . . . . . . . . . . . . . . . . . . . . . Unused Backups 57 | . 1 2 . . 5 1 4 1 . . 3 1 . 2 . 4 . . . 3 . . . . . . 19 2 8 1 Power 4 | . . . . . . . . . . . 2 . . . . . . . . . . . . . . . . 1 1 . Propulsion 23 | . . 2 . . . . . . . . . . . . . 1 . . . 1 . . . . . . 14 . 5 . Utility 12 | . . . . . 1 1 2 1 . . . . . 2 . 1 . . . 1 . . . . . . 1 . 1 1 Weapon 16 | . 1 . . . 3 . 2 . . . 1 1 . . . 2 . . . 1 . . . . . . 4 . 1 . Tool/Special 2 | . . . . . 1 . . . . . . . . . . . . . . . . . . . . . . 1 . . Average Slot Usage (%) 90 | . 95 98 100 90 91 98 98 90 89 95 99 92 100 98 91 89 91 90 86 83 79 82 85 88 88 93 86 85 82 69 Engine 2 | . 14 14 14 14 7 8 9 5 2 6 . . . . . . . . . . . . . . . . . . . . Reactor 3 | . . . . . . . . . . . 6 6 6 6 4 4 5 5 5 5 5 5 5 5 5 9 8 6 7 4 Treads 6 | . 28 28 28 28 28 . . 12 7 19 7 . . . . 2 . . . . . . . . . . 2 . 5 . Leg 15 | . . . . . 2 34 35 16 16 . 18 26 26 26 23 15 17 17 17 14 15 15 15 15 15 21 16 . 12 11 Device 4 | . 10 . . . 8 . 9 1 10 . 3 . . . . . . 1 5 1 . . 5 6 9 13 11 10 12 2 Storage 6 | . 14 14 14 14 9 9 9 9 7 7 6 6 6 6 5 5 5 5 5 5 5 5 5 5 5 4 3 1 3 1 Hackware 22 | . . . . . . 9 5 5 8 21 27 24 33 34 35 34 38 35 29 37 33 31 31 31 26 21 16 29 23 36 Protection 6 | . . 12 14 4 7 9 2 11 6 7 6 7 6 4 3 7 7 5 5 1 3 8 6 7 9 6 4 . 2 2 Energy Gun 2 | . 26 23 14 4 . . . . . . 10 1 . . . . . . . . . . . . . 1 2 . 3 . Ballistic Gun 1 | . . 4 14 14 5 . . . . . . . . . 1 . . . . . . . . . . . 1 . . . Ballistic Cannon 3 | . . . . . . . . . . . . . . 4 5 1 4 7 4 6 10 10 13 12 9 6 2 . 1 1 Special Weapon 2 | . . . . . . . . . . 5 5 1 5 5 2 2 4 5 5 3 3 5 1 . 1 2 . 4 1 3 Slashing Weapon 3 | . . . . . 5 9 20 19 16 16 2 . . . . . . . . . . . . . . . 1 2 . . Piercing Weapon 2 | . . . . . 9 17 1 . . . . 3 6 6 3 3 3 2 5 3 . . . 2 4 1 1 . . . Peak Build Rating 168 | 6 10 10 10 13 39 39 46 39 45 51 69 96 98 100 108 113 115 118 112 120 125 121 127 134 138 159 157 142 154 168 Average Rating 83 | 5 8 9 10 9 25 36 38 31 38 44 59 80 97 97 96 96 111 113 110 108 119 120 122 129 136 149 136 121 138 112 On Entrance 78 | . 6 9 10 10 11 39 36 33 24 40 48 69 93 98 96 88 104 114 112 106 114 117 121 127 134 136 157 117 101 150 Avg Prop Armor Cover (%) 11 | . . . . . 4 . . 6 8 7 4 . . . . . . . . . . . . . . . . . 8 24 Naked Turns . | . . . . . . . . . . . . . . . . . . . . . . . . . . . . . . . Heaviest Build 148 | 11 16 19 19 19 56 52 51 60 56 55 59 82 86 86 103 92 91 91 87 100 107 103 111 111 112 148 130 52 126 115 Greatest Support 225 | 40 40 40 40 40 83 66 68 60 80 83 83 100 100 100 104 123 120 132 132 132 150 150 150 150 150 150 187 57 225 159 Greatest Overweight (x) 15 | . . . . . 1 . . 2 15 2 . . . . 1 1 . . . 1 . . . . . 1 1 1 1 14 Average Overweight (x) . | . . . . . . . . . . . . . . . . . . . . . . . . . . . . . . . Largest Inventory Capacity 25 | 8 8 8 8 8 25 15 15 15 15 15 15 20 20 20 20 20 20 20 20 20 20 20 20 20 20 20 20 5 20 20 Average Capacity 16 | 7 8 8 8 8 14 15 15 15 15 15 15 18 20 20 20 20 20 20 20 20 20 20 20 20 20 20 19 5 18 9 Most Carried 20 | 3 8 8 8 8 15 15 15 15 15 15 15 20 20 20 20 19 17 20 20 20 18 18 20 20 20 20 20 5 20 20 Average Carried 15 | 1 6 7 7 7 12 14 14 14 13 13 13 15 20 19 19 16 15 19 19 19 18 17 17 19 19 18 18 4 16 8 Final Capacity 20 | 8 8 8 8 8 15 15 15 15 15 15 15 20 20 20 20 20 20 20 20 20 20 20 20 20 20 20 5 5 20 5 Final Carried 20 | 3 8 7 8 8 15 15 14 15 13 15 12 20 20 19 19 17 17 20 20 19 18 17 20 20 20 19 5 5 17 5 Class Distribution -------------------- 30% | Botlord-Mutant 22% | Botlord-Tank 20% | Mutant 10% | Commander-Mutant 6% | Bothacker-Mutant 3% | Scavenger-Mutant Dominant Class ---------------- Mutant | -10/Materials Mutant | -10/Mines Mutant | -10/Exiles Mutant | -9/Mines Mutant | -8/Materials Mutant | -8/Garrison Mutant | -8/Materials Bothacker-Mutant | -8/Garrison Scavenger-Mutant | -7/Factory Botlord-Mutant | -7/Garrison Botlord-Tank | -6/Factory Commander-Mutant | -6/Garrison Commander-Mutant | -6/Factory Botlord-Mutant | -6/Garrison Botlord-Mutant | -5/Factory Botlord-Mutant | -5/Garrison Botlord-Mutant | -5/Factory Botlord-Tank | -5/Garrison Commander-Mutant | -5/Factory Commander-Mutant | -5/Garrison Commander-Tank | -4/Factory Botlord-Tank | -4/Upper Caves Botlord-Tank | -4/Upper Caves Botlord-Mutant | -4/Zhirov Botlord-Mutant | -3/Proximity Caves Botlord-Tank | -3/Research Botlord-Mutant | -3/Armory Botlord-Sprinter | -2/Research Botlord-Tank | -2/Garrison Botlord-Mutant | -1/Access Resources | -11 -10 -10 -10 -9 -8 -8 -8 -8 -7 -7 -6 -6 -6 -6 -5 -5 -5 -5 -5 -5 -4 -4 -4 -4 -3 -3 -3 -2 -2 -1 ----------- Run | Yrd Mat Min Exi Min Mat Gar Mat Gar Fac Gar Fac Gar Fac Gar Fac Gar Fac Gar Fac Gar Fac Upp Upp Zhi Pro Res Arm Res Gar Acc Matter Collected 13035 | 260 50 69 . 168 304 211 225 358 186 304 426 390 10 394 522 584 171 986 . 676 602 331 263 189 342 1431 1221 . 1536 826 Remotely . | . . . . . . . . . . . . . . . . . . . . . . . . . . . . . . . Salvage Created 13571 | 92 234 328 . 185 433 974 439 1014 471 295 165 463 120 123 255 891 . 637 . 197 37 318 260 355 386 1211 1301 . 1714 673 Parts 626 | 3 13 30 . 3 29 64 30 52 27 17 7 20 5 10 5 35 . 26 . 7 4 10 11 3 11 62 53 . 49 40 Haulers Intercepted 3 | . . . . . 1 . 2 . . . . . . . . . . . . . . . . . . . . . . . Recyclers Shooed 2 | . . . . . . . . . . . 1 . . . 1 . . . . . . . . . . . . . . . Parts Field Recycled . | . . . . . . . . . . . . . . . . . . . . . . . . . . . . . . . Retrieved Matter . | . . . . . . . . . . . . . . . . . . . . . . . . . . . . . . . Parts Self-Destructed 77 | . . . . . . . . . . . . . . . . . . . . . . 33 18 2 24 . . . . . Prevented . | . . . . . . . . . . . . . . . . . . . . . . . . . . . . . . . Parts Restored . | . . . . . . . . . . . . . . . . . . . . . . . . . . . . . . . Kills | -11 -10 -10 -10 -9 -8 -8 -8 -8 -7 -7 -6 -6 -6 -6 -5 -5 -5 -5 -5 -5 -4 -4 -4 -4 -3 -3 -3 -2 -2 -1 ------- Run | Yrd Mat Min Exi Min Mat Gar Mat Gar Fac Gar Fac Gar Fac Gar Fac Gar Fac Gar Fac Gar Fac Upp Upp Zhi Pro Res Arm Res Gar Acc Combat Hostiles Destroyed 235 | . 5 12 . 8 7 28 5 19 9 8 2 8 2 7 5 7 . 7 . 3 . 7 9 . 6 23 23 . 15 10 Melee 66 | . . . . . 3 19 3 10 5 8 . 1 . 1 3 4 . . . . . . . . . 4 3 . 1 1 Guns 43 | . 5 11 . 5 4 . . . . . 1 2 . . 1 . . . . . . . . . . 1 4 . 9 . Cannons 49 | . . . . . . . . . . . . 1 2 . 1 1 . 3 . 3 . 4 4 . 6 7 6 . 4 7 AOE 71 | . . 1 . 3 . 9 2 9 4 . 1 2 . 6 . 2 . 4 . . . 3 5 . . 11 8 . 1 . Classes Destroyed 22 | 1 1 3 . 2 3 1 1 3 . . 1 . . 1 . 1 . . . . . . . . . 1 3 . . . Worker 6 | . . . . . 2 . 1 . 1 . . . . . . . . . . . . . . . . 2 . . . . Builder 7 | . . . . . . . 2 . . . . . . . . . . . . . 2 . . . . 2 . . . 1 Tunneler 4 | . . 1 . 1 . . . . . . . . . . . . . . . . . . . . . 2 . . . . Hauler 3 | . . . . . 1 . 2 . . . . . . . . . . . . . . . . . . . . . . . Recycler 4 | 1 . . . . . . . . . . . . . . . . . . . . . . . . . 2 . . . 1 Mechanic 1 | . . . . . . . . . . . . . . . . . . . . . . . . . . 1 . . . . Operator 1 | . . . . . . . . . . . . . . . . . . . . . . . . . . . 1 . . . Drone 1 | . . . . . . . . 1 . . . . . . . . . . . . . . . . . . . . . . Watcher 9 | . . . . . . . . . . . 2 . . 1 . 1 . . . 1 1 . . . . 2 1 . . . Swarmer 64 | . . 9 . . . 9 . 6 4 4 . 1 . 4 . 1 . 6 . . . 3 7 . . 4 4 . 2 . Cutter 1 | . . . . . . . . 1 . . . . . . . . . . . . . . . . . . . . . . Saboteur 3 | . . . . . . . . . . . . . . 3 . . . . . . . . . . . . . . . . Grunt 73 | . 5 1 . 1 3 8 3 2 . 3 1 7 2 . 3 3 . . . . . 3 . . 4 7 10 . 6 1 Brawler 5 | . . . . 1 . . . . . . 1 . . . . 1 . . . . . . . . 1 1 . . . . Duelist 9 | . . . . . . 2 . . . . . . . . . . . . . . . . . . 1 . 5 . 1 . Protector 1 | . . . . . . . . . . . . . . . . . . . . . . . . . . . 1 . . . Sentry 30 | . . 2 . . 3 9 2 4 4 . . . . . . 1 . . . . . . 1 . . 1 2 . 1 . Hunter 5 | . . . . . 1 . . 1 . . . . . . . . . . . . . 1 1 . . . . . 1 . Programmer 36 | . . . . . . . . 3 1 1 . . . . 2 2 . 1 . 3 . . . . . 10 1 . 3 9 Heavy 1 | . . . . . . . . . . . . . . . . . . . . . . . . . . . 1 . . . Behemoth 2 | . . . . . . . . . . . . . . . . 1 . . . . . . . . . . . . 1 . Assembled 6 | . . . . 6 . . . . . . . . . . . . . . . . . . . . . . . . . . Savage 1 | . . . . . . . . 1 . . . . . . . . . . . . . . . . . . . . . . Guerrilla 1 | . . . . . . . . 1 . . . . . . . . . . . . . . . . . . . . . . Best Kill Streak 13 | 1 3 3 . 4 3 5 3 9 5 2 1 3 1 6 2 2 . 4 . 3 2 3 5 . 3 8 13 . 2 3 Combat Bots Only 12 | . 3 3 . 4 3 5 2 9 4 2 1 3 1 6 2 2 . 4 . 3 . 3 5 . 3 6 12 . 2 3 Max Kills in Single Turn 9 | 1 1 1 . 1 1 3 1 3 4 1 1 1 1 6 1 2 . 4 . 1 3 3 5 . 1 6 9 . 1 1 Gunslinging . | . . . . . . . . . . . . . . . . . . . . . . . . . . . . . . . Exploded 8 | . . 1 . 1 . 3 1 3 4 . 1 1 . 6 . 1 . 4 . . . 3 5 . . 5 8 . 1 . Melee 1 | . . . . . 1 1 1 1 1 1 . 1 . 1 1 1 . . . . . . . . . 1 1 . 1 1 Uniques/NPCs Destroyed . | . . . . . . . . . . . . . . . . . . . . . . . . . . . . . . . Combat | -11 -10 -10 -10 -9 -8 -8 -8 -8 -7 -7 -6 -6 -6 -6 -5 -5 -5 -5 -5 -5 -4 -4 -4 -4 -3 -3 -3 -2 -2 -1 -------- Run | Yrd Mat Min Exi Min Mat Gar Mat Gar Fac Gar Fac Gar Fac Gar Fac Gar Fac Gar Fac Gar Fac Upp Upp Zhi Pro Res Arm Res Gar Acc Hostile Shots Fired 2354 | . 19 54 . 32 39 134 29 128 181 145 21 119 1 42 93 122 6 34 2 27 20 23 52 . 34 160 313 20 286 218 Missed 742 | . 7 20 . 8 10 37 11 37 62 45 7 52 . 15 25 22 2 11 . 7 9 12 19 . 6 41 84 8 103 82 Hits 1612 | . 12 34 . 24 29 97 18 91 119 100 14 67 1 27 68 100 4 23 2 20 11 11 33 . 28 119 229 12 183 136 Melee 67 | . . . . 3 . 6 . 2 . 9 . . . . . 1 . . . . . . . . 4 . 34 . 8 . Projectile 1545 | . 12 34 . 21 29 91 18 89 119 91 14 67 1 27 68 99 4 23 2 20 11 11 33 . 24 119 195 12 175 136 AOE 8 | . . . . . . . . 1 . . . . . 3 2 . . . . . . . . . . . . . 2 . Critical Strikes 88 | . . 2 . . 1 9 . 5 2 8 1 1 . . 3 4 . . . . . 1 1 . 2 12 14 . 11 11 Actively Blocked 10 | . . . . . . . . . . . . . . . . 2 . . . . . . . . . 2 1 . 2 3 Part Disruptions 8 | . . . . . . . . . . . . . . . . 1 . . . . . . . . . 1 . . 3 3 Actively Blocked 1 | . . . . . . . . . . . . . . . . 1 . . . . . . . . . . . . . . Damage Taken 30435 | . 175 357 . 405 416 1526 320 1389 932 1180 246 851 19 299 1433 2237 212 550 45 349 339 298 630 . 692 1842 5256 342 4852 3243 Core 2814 | . 27 51 . 26 85 185 18 110 135 48 17 36 . 44 38 217 7 32 . 63 71 31 50 . . 105 502 . 432 484 Absorbed by Shields 2053 | . . . . . . 71 . 46 . 293 . 218 . 56 . 65 . 111 . 31 . . . . . 963 . . 199 . Reduced by Siege Mode 419 | . . . . . . . . . . . . . . . . . . . . . . . . . . . 419 . . . Redirected to Shielding 630 | . . . . . . . . 18 . 11 . 2 . . 3 57 . . . . . 12 14 . . 54 223 . 100 136 Ignored by Resistances 970 | . . . . . . . . . . . . . . . . . . . . . . . . . . 235 735 . . . Regen/Repaired (Parts) 431 | . . . . . . . . . . . . . . . . . . . . . . . . . . 431 . . . . Core Remaining (%) 68 | 100 . . . 58 . . . 27 . 73 . . . 88 . . . . . 64 . . . . 86 . 47 . 70 69 Volleys Fired 806 | 5 14 23 . 23 12 6 6 20 2 12 42 70 13 24 35 33 17 62 1 46 28 25 12 . 18 52 58 1 75 71 Largest 3 | 2 2 2 . 2 3 1 1 1 1 1 2 2 1 1 2 2 1 2 1 3 3 2 3 . 2 3 3 1 2 3 Hottest 239 | 80 90 90 . 68 106 33 39 39 39 5 110 188 94 94 89 178 7 102 7 153 153 102 153 . 102 158 239 10 163 200 Shots Fired 1211 | 10 27 45 . 42 36 6 6 19 2 12 58 72 13 24 43 36 17 71 1 53 32 34 30 . 34 90 127 1 179 91 Gun 392 | 10 27 45 . 38 24 . . . . . 32 25 . . 6 1 . . . . . . . . . 7 54 . 115 8 Cannon 417 | . . . . . 12 . . . . . . 17 7 9 22 8 . 30 . 16 6 18 29 . 32 66 71 . 30 44 Launcher 69 | . . . . 4 . 6 6 19 2 . . 3 . 1 . 10 . 2 . . 2 1 1 . . 10 1 . . 1 Special 333 | . . . . . . . . . . 12 26 27 6 14 15 17 17 39 1 37 24 15 . . 2 7 1 1 34 38 Kinetic 418 | . . 8 . 21 24 . . . . . . . . 8 28 6 . 30 . 16 6 18 29 . 32 67 64 . 30 31 Thermal 200 | 5 . . . . 12 . . . . . . . . . . 3 . . . . . . . . . . 61 . 98 21 Explosive 29 | . . . . 4 . 6 . . . . . . . 1 . . . 2 . . 2 1 1 . . 10 1 . . 1 Electromagnetic 234 | 5 27 37 . 17 . . 6 19 2 . 32 45 7 1 . 10 . . . . . . . . . 6 . . 20 . Robot Hit Streak 21 | 2 4 9 . 4 4 2 3 5 1 13 19 12 4 7 6 8 4 10 8 16 9 7 3 . 8 9 17 18 21 7 Robot Miss Streak 16 | 1 3 3 . 6 3 1 1 4 1 . 3 2 3 5 3 3 2 2 . 2 6 8 12 . 2 15 5 . 16 5 Penetration Max 2 | . . . . . . . . . . . . . . . . . . 2 . . . 1 . . . 2 1 . . . Secondary Targets 4 | . 1 2 . 1 . . . . . . . . . . . . . . . . . . . . . . . . . . Max Gunslinging Chain 1 | . 1 1 . 1 . . . . . . . . . . . . . . . . . . . . . . . . . . Autonomous 74 | . . . . . . . . . . . . . . . . . . . . . . . . . . . . . 74 . Shots Hit Robots 1157 | 6 16 29 . 16 42 56 27 65 31 41 40 113 9 22 42 61 10 55 1 50 17 26 11 9 23 53 97 1 129 59 Core Hits 529 | 2 7 16 . 14 15 38 10 29 14 8 12 21 2 10 7 17 . 28 . 4 19 12 9 3 12 99 71 . 36 14 Critical Kills 24 | . . . . . 1 . . . . . . . . . 1 1 . 2 . 3 . 3 1 . 3 6 2 . . 1 Critical Parts Destroyed 49 | . . . . . . . . . . . . . . 3 8 3 . 5 . 1 2 6 5 . 5 9 1 . 1 . Critical Strikes 120 | . 1 2 . 1 2 6 1 2 6 3 . 1 . 4 11 6 . 9 . 7 2 9 6 2 9 17 8 . 1 4 Meltdown 2 | . . . . . . . . . . . . . . . . . . . . . . . . . . . 1 . . 1 Destroy 70 | . . . . . 1 . . . . . . . . 3 10 . . 7 . 5 2 9 6 . 9 16 2 . . . Blast 5 | . . . . . . . . . . . . . . . . 1 . . . . . . . . . . 2 . . 2 Corrupt 4 | . 1 2 . 1 . . . . . . . . . . . . . . . . . . . . . . . . . . Smash 5 | . . . . . . . . . . . . . . . . 4 . . . . . . . . . . . . 1 . Sever 16 | . . . . . . 2 1 2 6 3 . . . . . . . . . . . . . . . . 1 . . 1 Impale 18 | . . . . . 1 4 . . . . . 1 . 1 1 1 . 2 . 2 . . . 2 . 1 2 . . . Melee Attacks 758 | . . . . . 28 98 34 70 39 44 24 90 15 35 16 71 . 47 . 52 . . . 9 3 18 38 . 14 13 Impact 23 | . . . . . . . . . . . . . . . . 9 . . . . . . . . . . . . 14 . Slashing 243 | . . . . . 5 15 26 58 39 44 24 . . . . . . . . . . . . . . . 19 . . 13 Piercing 384 | . . . . . 23 83 2 . . . . 32 15 35 12 47 . 47 . 39 . . . 9 3 18 19 . . . Sneak Attacks 103 | . . . . . 5 . 6 17 1 1 . 50 . 2 . 6 . . . 13 . . . . 1 1 . . . . Combat Hostiles 3 | . . . . . . . . . 1 . . 1 . 1 . . . . . . . . . . . . . . . . Follow-up Attacks 65 | . . . . . 6 20 4 9 6 6 . . . . . 5 . . . . . . . . . . 9 . . . Damage Inflicted 39318 | 70 255 503 . 302 1112 2451 926 2855 1404 1095 410 1472 215 750 837 2908 . 2189 . 355 533 406 425 822 424 3783 4967 . 5893 1956 Guns 6422 | 70 255 429 . 226 216 . . . . . 262 233 . . 89 . . . . . . . . . . 92 1120 . 3332 98 Cannons 7796 | . . . . . 140 . . . . . . 424 215 109 268 49 . 228 . 153 35 250 192 . 326 726 2081 . 1229 1371 Explosions 9155 | . . 74 . 76 . 799 181 816 203 . 144 464 . 363 . 514 . 822 . . 487 156 233 . . 2496 950 . 259 118 Melee 15756 | . . . . . 754 1652 745 2039 1201 1095 . 351 . 278 480 2345 . 1139 . 202 . . . 822 98 469 785 . 1008 293 Ramming 140 | . . . . . 2 . . . . . 4 . . . . . . . . . 11 . . . . . 31 . 16 76 Kinetic 6829 | . . 122 . 88 216 . . . . . . . . 76 357 49 . 228 . 153 35 250 192 . 326 753 1679 . 1229 1076 Thermal 5923 | 46 . 74 . . 140 . . 177 . . 144 109 . . . 56 . . . . . . . . . . 1522 . 3262 393 Explosive 6500 | . . . . 76 . 799 . . . . . . . 363 . . . 822 . . 487 156 233 . . 2496 950 . . 118 Electromagnetic 4170 | 24 255 307 . 138 . . 181 639 203 . 262 1012 215 33 . 458 . . . . . . . . . 65 . . 378 . Impact 1386 | . . . . . . . . . . . . . . . . 378 . . . . . . . . . . . . 1008 . Slashing 5985 | . . . . . 66 292 670 2039 1201 1095 . . . . . . . . . . . . . . . . 329 . . 293 Piercing 8385 | . . . . . 688 1360 75 . . . . 351 . 278 480 1967 . 1139 . 202 . . . 822 98 469 456 . . . Highest Corruption 40 | . . . . . . . . 10 1 5 . . . . 5 10 10 10 10 10 1 1 1 . 4 14 40 2 31 30 Average Corruption 10 | . . . . . . . . 7 1 3 . . . . 4 8 10 10 10 10 1 1 1 . 4 6 15 2 23 26 Corruption Purged 7 | . . . . . . . . . . . . . . . . . . . . . . . 1 . . 6 . . . . Corruption Blocked . | . . . . . . . . . . . . . . . . . . . . . . . . . . . . . . . Effects 453 | . . . . . . . . 26 1 26 . . . . 6 43 16 51 5 53 2 3 2 . 10 40 50 1 83 35 Message Errors 100 | . . . . . . . . 5 . 4 . . . . 1 9 5 9 1 14 . . . . 2 10 14 1 17 8 Matter Fused 107 | . . . . . . . . 5 1 8 . . . . . 12 6 10 2 12 . 2 1 . 3 7 10 . 18 10 Heat Flow Errors 56 | . . . . . . . . 1 . 2 . . . . . 6 2 12 . 7 . 1 1 . 3 3 8 . 8 2 Energy Discharges 45 | . . . . . . . . 6 . 2 . . . . . 4 . 6 . 7 . . . . 2 4 5 . 8 1 Parts Rejected 7 | . . . . . . . . . . . . . . . 1 . . 2 . . . . . . . 1 1 . 2 . Parts Fused 5 | . . . . . . . . 1 . 1 . . . . . . . . . 1 . . . . . . . . 1 1 Data Loss (minor) 57 | . . . . . . . . 6 . 3 . . . . 1 8 3 8 . 4 2 . . . . 6 3 . 8 5 Data Loss (major) 24 | . . . . . . . . . . 4 . . . . . 1 . 3 1 2 . . . . . 2 2 . 8 1 Misfires 14 | . . . . . . . . . . . . . . . 2 2 . 1 . . . . . . . 3 1 . 3 2 Alerts 17 | . . . . . . . . 1 . 2 . . . . 1 1 . . 1 4 . . . . . 1 2 . 3 1 Misdirections 13 | . . . . . . . . . . . . . . . . . . . . 1 . . . . . . 3 . 5 4 Weapon Failures 8 | . . . . . . . . 1 . . . . . . . . . . . 1 . . . . . 3 1 . 2 . Overload Shots . | . . . . . . . . . . . . . . . . . . . . . . . . . . . . . . . Overflow Damage 2107 | . . 18 . . 8 71 . 16 56 44 . 52 . . 25 404 . 96 . 234 13 . 6 255 . 51 29 . 548 181 Projectiles 489 | . . . . . . . . . . . . . . . . . . . . . . . 6 . . 25 11 . 288 159 Explosions 155 | . . 18 . . . 71 . 1 . . . . . . . . . 12 . . 13 . . . . 22 18 . . . Melee 1463 | . . . . . 8 . . 15 56 44 . 52 . . 25 404 . 84 . 234 . . . 255 . 4 . . 260 22 Knockbacks 56 | . . . . . . . . . . . . . . 3 2 . . 1 . . . 4 4 . 4 6 11 . 11 10 Impact 3 | . . . . . . . . . . . . . . . . . . . . . . . . . . . . . 1 2 Kinetic 48 | . . . . . . . . . . . . . . 2 2 . . 1 . . . 4 4 . 4 5 8 . 10 8 Secondary 5 | . . . . . . . . . . . . . . 1 . . . . . . . . . . . 1 3 . . . Self-Inflicted Damage 862 | . . . . 49 . 99 22 147 . . . . . . . 36 . . . . 52 39 24 . . 184 174 . . 36 Shots 46 | . . . . 3 . 5 1 10 . . . . . . . 3 . . . . 2 2 2 . . 10 7 . . 1 Rammed 7 | . . . . . 1 . . . . . . . . . . . . . . . . . . . . . . . 6 . Targets Rammed 13 | . . . . . 1 . . . . . 1 . . . . . . . . . 1 . . . . . 1 . 7 2 Kicked 5 | . . . . . . . . . . . 1 . . . . . . . . . 1 . . . . . 1 . . 2 Crushed 1 | . . . . . . . . . . . . . . . . . . . . . . . . . . . . . 1 . Highest Temperature 508 | 36 272 186 . 177 207 18 7 256 . 231 306 360 249 42 144 294 250 248 . 238 150 268 398 . 189 317 508 . 373 239 Average Temperature 85 | 19 117 63 . 65 78 9 4 47 . 90 84 77 107 8 43 93 115 81 . 78 77 62 148 . 64 87 120 . 88 59 Received Heat Transfer 6376 | . 99 108 . 128 144 546 135 112 156 287 102 276 9 36 405 623 18 44 9 8 27 12 376 . 154 143 908 9 1358 144 Effects 8 | . . . . . . . . . . . . . . . . 1 . . . . . . 3 . . . 4 . . . Shutdowns 3 | . . . . . . . . . . . . . . . . . . . . . . . 1 . . . 2 . . . Energy Bleed 4 | . . . . . . . . . . . . . . . . 1 . . . . . . 2 . . . 1 . . . Short Circuit 1 | . . . . . . . . . . . . . . . . . . . . . . . . . . . 1 . . . Siege Activations 1 | . . . . . . . . . . . . . . . . . . . . . . . . . . . 1 . . . Total Turns 39 | . . . . . . . . . . . . . . . . . . . . . . . . . . . 39 . . . Longest Duration 39 | . . . . . . . . . . . . . . . . . . . . . . . . . . . 39 . . . Martial Activations . | . . . . . . . . . . . . . . . . . . . . . . . . . . . . . . . Shielding Activations . | . . . . . . . . . . . . . . . . . . . . . . . . . . . . . . . Robots Disrupted 3 | . . . . . . . . . . . . 3 . . . . . . . . . . . . . . . . . . Combat Hostiles 3 | . . . . . . . . . . . . 3 . . . . . . . . . . . . . . . . . . Robots Corrupted 8 | . . . . . . . . . . . . 2 . . . . . . . . . . . . . . 1 . 5 . Combat Hostiles 3 | . . . . . . . . . . . . 2 . . . . . . . . . . . . . . 1 . . . Parts Fried 13 | . . . . . . . . 2 . . . 2 . . . . . . . . . . . . . . 1 . 8 . Impact Corruptions 13 | . . . . . . . . . . . . . . . . 4 . . . . . . . . . . 1 . 7 1 Robots Melted 2 | . . . . . . . . . . . . . . . . . . . . . . . . . . . 1 . . 1 Combat Hostiles 2 | . . . . . . . . . . . . . . . . . . . . . . . . . . . 1 . . 1 Parts Melted 15 | . . 1 . . . . . . . . . . . . . . . . . . . . . . . . 4 . 7 3 Heat Transferred 5813 | 100 . 150 . . 222 . . 225 . . 100 150 . . . 50 . . . . . . . . . . 1443 . 3040 333 Parts Sabotaged 1 | . . . . . . . . . . . . . . . . . . . . . . . . . . . 1 . . . Parts Stolen . | . . . . . . . . . . . . . . . . . . . . . . . . . . . . . . . Parts Stripped . | . . . . . . . . . . . . . . . . . . . . . . . . . . . . . . . Power Chain Reactions 14 | . . 1 . . . . 1 4 . . 3 2 . . . 1 . . . . . . . . . . . . 2 . Alert | -11 -10 -10 -10 -9 -8 -8 -8 -8 -7 -7 -6 -6 -6 -6 -5 -5 -5 -5 -5 -5 -4 -4 -4 -4 -3 -3 -3 -2 -2 -1 ------- Run | Yrd Mat Min Exi Min Mat Gar Mat Gar Fac Gar Fac Gar Fac Gar Fac Gar Fac Gar Fac Gar Fac Upp Upp Zhi Pro Res Arm Res Gar Acc Maximum Alert Level 5 | . . . . . . 3 2 4 2 3 2 5 4 5 4 4 3 5 4 5 5 . . . . 2 2 1 4 3 Low Security (%) 17 | 100 100 100 . 100 100 7 . . 47 8 . . . . . . . . . . . . . . . 29 . . . . Level 1 14 | . . . . . . 26 76 18 8 21 79 1 . . . . . . . . . . . . . 13 4 100 33 . Level 2 23 | . . . . . . 41 23 17 44 45 20 26 . . . 17 4 18 . . . . . . . 56 95 . 38 39 Level 3 21 | . . . . . . 24 . 53 . 24 . 17 71 19 93 69 95 4 . 20 5 . . . . . . . 19 60 Level 4 10 | . . . . . . . . 10 . . . 34 28 8 6 13 . 11 100 23 78 . . . . . . . 8 . Level 5 11 | . . . . . . . . . . . . 20 . 72 . . . 64 . 55 16 . . . . . . . . . High Security . | . . . . . . . . . . . . . . . . . . . . . . . . . . . . . . . Max Security . | . . . . . . . . . . . . . . . . . . . . . . . . . . . . . . . Peak Influence 2271 | 5 105 126 . 75 82 934 455 1146 601 852 469 1829 1135 2118 1111 1412 837 2271 1192 2086 1772 . . . . 590 687 322 1287 867 Initial 1192 | . . 36 . . . 4 455 260 601 72 447 325 959 762 1111 516 741 513 1192 785 1094 . . . . 49 289 289 215 772 Average 738 | . 43 37 . 9 12 520 348 751 322 500 340 1150 1039 1668 919 914 760 1613 1160 1567 1371 . . . . 365 560 278 587 709 Influence Increases 22262 | 5 179 348 . 104 290 990 416 1016 252 970 786 1884 638 1596 293 1076 267 1988 . 1771 1437 715 343 5 288 1144 1049 118 1442 852 Destroy 0b10 Robot/C 10000 | . 100 260 . 40 140 560 160 540 180 480 340 820 200 640 200 380 80 680 . 580 540 380 220 . 220 540 620 . 660 440 Destroy 0b10 Robot/NC 365 | 5 . 5 . 5 15 . 40 15 5 . 20 . 15 10 . 15 15 20 . 5 30 . . 5 . 65 20 . 30 25 Destroy Leader 1074 | . 30 40 . 10 52 20 54 40 60 30 76 . 32 50 10 30 26 50 . 30 72 20 30 . 10 104 66 . 60 72 Allied During Kill 5101 | . . 22 . . . . 21 58 . 91 221 638 247 681 45 149 121 733 . 615 592 315 63 . 43 61 77 . 185 123 Successful Hack 241 | . 4 . . . 21 26 8 7 4 14 42 . 21 . . 14 . . . 14 6 . . . . 16 . 28 16 . Select Force Hacks 30 | . . . . . 30 . . . . . . . . . . . . . . . . . . . . . . . . . Disable Machine 675 | . 30 . . 15 . . 30 15 . . 45 . 105 30 30 60 15 30 . 45 45 . . . . 30 105 . 30 15 Anti-Garrison Action 2500 | . . . . . . 200 . 250 . 250 . 350 . 100 . 300 . 350 . 350 . . . . . . . . 350 . Destroy Structure 1466 | . . 6 . 19 2 109 58 46 3 . 12 31 18 70 8 53 10 125 . 132 152 . . . . 328 86 . 96 102 Partial Spotted 45 | . . . . . . . . . . . . . . . . 15 . . . . . . . . . . . 30 . . Lose Combat Pursuer 765 | . 15 15 . 15 30 75 45 45 . 105 30 45 . 15 . 60 . . . . . . 30 . 15 . 75 60 15 75 Influence Decreases 21586 | 5 84 439 4 104 283 63 949 271 1295 221 1173 520 1378 567 1673 402 945 451 1149 807 2116 828 857 785 214 667 1048 383 442 1463 Entered New Map 10219 | . . 59 4 . . 3 479 141 545 31 405 140 870 327 1007 222 671 221 1079 337 992 522 247 780 . 25 262 263 72 515 Time Decay 5730 | 5 64 370 . 104 283 . 410 . 380 . 538 . 318 . 286 . 214 . 70 . 434 246 380 5 197 522 486 50 . 368 Lost Part 1380 | . 20 10 . . . 60 10 90 70 70 . 10 . . 20 100 . 10 . 10 . . 10 . . 80 240 70 170 330 Lost Ally 3657 | . . . . . . . 50 40 . 120 80 370 40 240 360 80 60 220 . 460 690 60 220 . 17 40 60 . 200 250 Purge Threat 600 | . . . . . . . . . 300 . 150 . 150 . . . . . . . . . . . . . . . . . Squads Dispatched 58 | . 2 . . . 1 . 2 . 3 . 8 . 7 . 4 . 3 . . . 8 . . . . 4 5 1 . 10 Investigation 5 | . . . . . 1 . 1 . . . . . 1 . . . . . . . 2 . . . . . . . . . Extermination 17 | . . . . . . . . . 1 . 2 . 2 . 1 . 1 . . . . . . . . 3 2 1 . 4 Reinforcement 12 | . 2 . . . . . 1 . . . 2 . 1 . . . . . . . 2 . . . . . . . . 4 Assault 14 | . . . . . . . . . . . . . 2 . 3 . . . . . 4 . . . . . 3 . . 2 Garrison 10 | . . . . . . . . . 2 . 4 . 1 . . . 2 . . . . . . . . 1 . . . . Intercept . | . . . . . . . . . . . . . . . . . . . . . . . . . . . . . . . Searches Triggered . | . . . . . . . . . . . . . . . . . . . . . . . . . . . . . . . Unchained Authorized 1 | . . . . . . . . . . . . . . . . . . . . . 1 . . . . . . . . . Construction Impeded 3 | . . . . . . . . . . . 1 . . . . . . . . . 1 . . . . . . . . 1 Haulers Reinforced 1 | . . . . . . . . . . . 1 . . . . . . . . . . . . . . . . . . . Active Scanning Responses . | . . . . . . . . . . . . . . . . . . . . . . . . . . . . . . . Cargo Convoy Interrupts . | . . . . . . . . . . . . . . . . . . . . . . . . . . . . . . . Stealth | -11 -10 -10 -10 -9 -8 -8 -8 -8 -7 -7 -6 -6 -6 -6 -5 -5 -5 -5 -5 -5 -4 -4 -4 -4 -3 -3 -3 -2 -2 -1 --------- Run | Yrd Mat Min Exi Min Mat Gar Mat Gar Fac Gar Fac Gar Fac Gar Fac Gar Fac Gar Fac Gar Fac Upp Upp Zhi Pro Res Arm Res Gar Acc Distress Signals 17 | . 1 . . . 2 . 2 . . . 3 . . 1 . . . . . . 2 . . . . 1 3 . . 2 Communications Jammed 14 | . . . . . . . . . . . . . . . . 8 1 4 . . . . . . . . . 1 . . Distress Signals 12 | . . . . . . . . . . . . . . . . 8 . 4 . . . . . . . . . . . . Times Spotted 725 | . 7 13 . 9 14 33 16 33 11 37 27 56 11 27 22 35 13 40 1 39 21 22 13 . 12 39 60 13 49 52 Peak Tracking Total 14 | . 5 3 . 2 3 6 2 8 4 7 4 8 3 5 9 7 2 5 1 7 7 2 4 . 4 7 14 8 7 6 Tactical Retreats 36 | . 1 1 . 1 1 3 2 2 . 4 1 2 . 1 . 2 . . . . . . 2 . 1 . 3 3 1 5 Traps | -11 -10 -10 -10 -9 -8 -8 -8 -8 -7 -7 -6 -6 -6 -6 -5 -5 -5 -5 -5 -5 -4 -4 -4 -4 -3 -3 -3 -2 -2 -1 ------- Run | Yrd Mat Min Exi Min Mat Gar Mat Gar Fac Gar Fac Gar Fac Gar Fac Gar Fac Gar Fac Gar Fac Upp Upp Zhi Pro Res Arm Res Gar Acc Traps Triggered 42 | . . . . . . 4 1 . . 5 2 5 . 7 1 7 . 3 . 3 1 . . . . 1 . . 1 1 Indirectly 1 | . . . . . . . . . . . . . . . . 1 . . . . . . . . . . . . . . Trap Hack Attempts 101 | . . . . . . . . 22 . . . . . . 63 . 16 . . . . . . . . . . . . . Triggered 1 | . . . . . . . . 1 . . . . . . . . . . . . . . . . . . . . . . Disarmed 1 | . . . . . . . . . . . . . . . . . 1 . . . . . . . . . . . . . Reprogrammed 9 | . . . . . . . . . . . . . . . 6 . 3 . . . . . . . . . . . . . Reused . | . . . . . . . . . . . . . . . . . . . . . . . . . . . . . . . Traps Extracted . | . . . . . . . . . . . . . . . . . . . . . . . . . . . . . . . Installed . | . . . . . . . . . . . . . . . . . . . . . . . . . . . . . . . Triggered . | . . . . . . . . . . . . . . . . . . . . . . . . . . . . . . . Machines | -11 -10 -10 -10 -9 -8 -8 -8 -8 -7 -7 -6 -6 -6 -6 -5 -5 -5 -5 -5 -5 -4 -4 -4 -4 -3 -3 -3 -2 -2 -1 ---------- Run | Yrd Mat Min Exi Min Mat Gar Mat Gar Fac Gar Fac Gar Fac Gar Fac Gar Fac Gar Fac Gar Fac Upp Upp Zhi Pro Res Arm Res Gar Acc Machines Disabled 85 | . 2 . . 1 . 4 2 4 . 3 3 5 7 4 2 8 1 7 . 9 3 2 . . . 2 7 . 8 1 Max in Single Turn 2 | . 1 . . 1 . 1 . 1 . 1 1 1 1 1 1 2 . 1 . 1 1 . . . . 1 1 . 1 1 Garrison Relay 39 | . . . . . . 4 . 3 . 3 . 5 . 2 . 4 . 6 . 5 . . . . . . . . 7 . Energy Cycler 2 | . . . . . . . . . . . . . . . . . . . . . . . . . . . 1 . . 1 Machines Repaired . | . . . . . . . . . . . . . . . . . . . . . . . . . . . . . . . Machines Dismantled 5 | . . . . . . . . . . . . . . . . . . 1 . 1 2 . . . . . 1 . . . Machines Sabotaged . | . . . . . . . . . . . . . . . . . . . . . . . . . . . . . . . Overloaded Fab Kills . | . . . . . . . . . . . . . . . . . . . . . . . . . . . . . . . Hacking | -11 -10 -10 -10 -9 -8 -8 -8 -8 -7 -7 -6 -6 -6 -6 -5 -5 -5 -5 -5 -5 -4 -4 -4 -4 -3 -3 -3 -2 -2 -1 --------- Run | Yrd Mat Min Exi Min Mat Gar Mat Gar Fac Gar Fac Gar Fac Gar Fac Gar Fac Gar Fac Gar Fac Upp Upp Zhi Pro Res Arm Res Gar Acc Machines Accessed 79 | . 1 . 1 . 8 4 4 3 7 3 9 . 2 2 2 2 2 3 1 1 3 1 . 4 . 6 4 3 2 1 Terminals 49 | . 1 . . . 5 4 2 3 2 3 5 . 1 2 1 2 1 3 . 1 3 1 . . . 3 2 1 2 1 Fabricators 2 | . . . . . . . . . 1 . . . . . . . . . . . . . . . . . 1 . . . Repair Stations 1 | . . . . . . . . . . . . . . . . . . . . . . . . . . 1 . . . . Recycling Units 8 | . . . . . 1 . 1 . 2 . 1 . . . . . . . . . . . . . . 2 1 . . . Scanalyzers 5 | . . . . . 1 . . . 1 . 2 . . . . . . . . . . . . . . . . 1 . . Garrison Access 9 | . . . . . 1 . 1 . 1 . 1 . 1 . 1 . 1 . 1 . . . . . . . . 1 . . Total Hacks 187 | . 2 . 4 . 35 5 11 6 14 3 20 . 6 3 4 3 4 4 2 1 7 4 . 17 . 17 5 6 3 1 Successful 97 | . 1 . 4 . 22 3 6 1 9 1 7 . 4 . 1 1 1 . 1 1 2 4 . 17 . 5 1 4 1 . Failed 89 | . 1 . . . 12 2 5 5 5 2 13 . 2 3 3 2 3 4 1 . 5 . . . . 12 4 2 2 1 Catastrophic 24 | . . . . . 1 . . 2 1 2 3 . . 1 1 . 1 1 1 . 2 . . . . 3 3 1 1 . Database Lockouts 1 | . . . . . 1 . . . . . . . . . . . . . . . . . . . . . . . . . Manual 64 | . 1 . . . 24 . 9 . 4 . 4 . 5 . 3 . 1 . 1 . 3 . . . . 6 1 1 . 1 Terminals 121 | . 2 . . . 22 5 9 6 8 3 15 . 4 3 2 3 2 4 . 1 7 4 . . . 11 3 3 3 1 Fabricators 2 | . . . . . . . . . 1 . . . . . . . . . . . . . . . . . 1 . . . Repair Stations 3 | . . . . . . . . . . . . . . . . . . . . . . . . . . 3 . . . . Recycling Units 12 | . . . . . 3 . 1 . 3 . 1 . . . . . . . . . . . . . . 3 1 . . . Scanalyzers 14 | . . . . . 8 . . . 1 . 3 . . . . . . . . . . . . . . . . 2 . . Garrison Access 14 | . . . . . 2 . 1 . 1 . 1 . 2 . 2 . 2 . 2 . . . . . . . . 1 . . Terminal Hacks 46 | . . . 4 . 3 3 . 1 2 1 3 . 1 . . 1 . . . 1 1 4 . 17 . 1 1 1 1 . Record 13 | . . . 4 . . . . . . . . . . . . . . . . . . 4 . 5 . . . . . . Part Schematic 5 | . . . . . 1 . . . . . . . . . . . . . . . . . . 4 . . . . . . Robot Analysis 5 | . . . . . 1 . . . . . . . . . . . . . . . . . . 4 . . . . . . Prototype ID Bank 6 | . . . . . 1 . . . . . . . . . . . . . . . . . . 4 . . . 1 . . Open Door 3 | . . . . . . 1 . 1 . . . . . . . . . . . . . . . . . . 1 . . . Branch Access Points 2 | . . . . . . . . . . . . . . . . . . . . . 1 . . . . 1 . . . . Emergency Access Points 3 | . . . . . . 1 . . . . . . . . . 1 . . . 1 . . . . . . . . . . Unreport Threat 4 | . . . . . . . . . 2 . 1 . 1 . . . . . . . . . . . . . . . . . Locate Traps 1 | . . . . . . . . . . . 1 . . . . . . . . . . . . . . . . . . . Recall Reinforcements 1 | . . . . . . . . . . . 1 . . . . . . . . . . . . . . . . . . . Patrol Navigation 2 | . . . . . . . . . . 1 . . . . . . . . . . . . . . . . . . 1 . Security Stations 1 | . . . . . . 1 . . . . . . . . . . . . . . . . . . . . . . . . Fabricator Hacks 1 | . . . . . . . . . 1 . . . . . . . . . . . . . . . . . . . . . Build 1 | . . . . . . . . . 1 . . . . . . . . . . . . . . . . . . . . . Repair Station Hacks 2 | . . . . . . . . . . . . . . . . . . . . . . . . . . 2 . . . . Scan Component 1 | . . . . . . . . . . . . . . . . . . . . . . . . . . 1 . . . . Repair 1 | . . . . . . . . . . . . . . . . . . . . . . . . . . 1 . . . . Recycling Unit Hacks 6 | . . . . . 1 . 1 . 3 . 1 . . . . . . . . . . . . . . . . . . . Retrieve Components 6 | . . . . . 1 . 1 . 3 . 1 . . . . . . . . . . . . . . . . . . . Scanalyzer 10 | . . . . . 8 . . . . . 1 . . . . . . . . . . . . . . . . 1 . . Insert Component 4 | . . . . . 4 . . . . . . . . . . . . . . . . . . . . . . . . . Analyze 4 | . . . . . 4 . . . . . . . . . . . . . . . . . . . . . . . . . Retrieve Study 2 | . . . . . . . . . . . 1 . . . . . . . . . . . . . . . . 1 . . Garrison Access Hacks 9 | . . . . . 1 . 1 . 1 . 1 . 1 . 1 . 1 . 1 . . . . . . . . 1 . . Unlock Access 9 | . . . . . 1 . 1 . 1 . 1 . 1 . 1 . 1 . 1 . . . . . . . . 1 . . Unauthorized Hacks 23 | . 1 . . . 9 . 4 . 2 . 1 . 2 . . . . . . . 1 . . . . 2 . 1 . . Terminals 21 | . 1 . . . 8 . 4 . 2 . 1 . 1 . . . . . . . 1 . . . . 2 . 1 . . Assimilate 1 | . . . . . . . . . . . . . . . . . . . . . . . . . . . . 1 . . Botnet 12 | . . . . . 3 . 2 . 2 . 1 . 1 . . . . . . . 1 . . . . 2 . . . . Skim 8 | . 1 . . . 5 . 2 . . . . . . . . . . . . . . . . . . . . . . . Fabricators . | . . . . . . . . . . . . . . . . . . . . . . . . . . . . . . . Repair Stations . | . . . . . . . . . . . . . . . . . . . . . . . . . . . . . . . Recycling Units 1 | . . . . . 1 . . . . . . . . . . . . . . . . . . . . . . . . . Tunnel 1 | . . . . . 1 . . . . . . . . . . . . . . . . . . . . . . . . . Scanalyzers . | . . . . . . . . . . . . . . . . . . . . . . . . . . . . . . . Garrison Access 1 | . . . . . . . . . . . . . 1 . . . . . . . . . . . . . . . . . Reprogram 1 | . . . . . . . . . . . . . 1 . . . . . . . . . . . . . . . . . Data Cores Recovered 3 | . . . . . . . . . . . 1 . . . . . . . . . . . . . . 1 1 . . . Used 1 | . . . . . . . . . . . 1 . . . . . . . . . . . . . . . . . . . Hacking Detections 60 | . 1 . . . 8 2 3 3 4 2 7 . 2 2 2 1 2 3 1 . 3 1 . . . 5 3 3 1 1 Full Trace Events 3 | . . . . . . . . . . . . . . . . . . . . . 2 1 . . . . . . . . Feedback Events 1 | . . . . . . . . . . . . . . . . . . . . . 1 . . . . . . . . . Corruption 1 | . . . . . . . . . . . . . . . . . . . . . 1 . . . . . . . . . Feedback Blocked . | . . . . . . . . . . . . . . . . . . . . . . . . . . . . . . . Robot Schematics Acquired . | . . . . . . . . . . . . . . . . . . . . . . . . . . . . . . . Robots Built 1 | . . . . . . . . . 1 . . . . . . . . . . . . . . . . . . . . . Authchips . | . . . . . . . . . . . . . . . . . . . . . . . . . . . . . . . Time 81 | . . . . . . . . . 81 . . . . . . . . . . . . . . . . . . . . . Total Robot Build Rating 1 | . . . . . . . . . 1 . . . . . . . . . . . . . . . . . . . . . Part Schematics Acquired 9 | . . . . . 5 . . . . . . . . . . . . . . . . . . 4 . . . . . . Parts Built . | . . . . . . . . . . . . . . . . . . . . . . . . . . . . . . . Authchips . | . . . . . . . . . . . . . . . . . . . . . . . . . . . . . . . Time . | . . . . . . . . . . . . . . . . . . . . . . . . . . . . . . . Total Part Build Rating . | . . . . . . . . . . . . . . . . . . . . . . . . . . . . . . . Part Studies Acquired 2 | . . . . . . . . . . . 1 . . . . . . . . . . . . . . . . 1 . . Parts Repaired 1 | . . . . . . . . . . . . . . . . . . . . . . . . . . 1 . . . . Time 74 | . . . . . . . . . . . . . . . . . . . . . . . . . . 74 . . . . Parts Recycled . | . . . . . . . . . . . . . . . . . . . . . . . . . . . . . . . Recycled Matter . | . . . . . . . . . . . . . . . . . . . . . . . . . . . . . . . Retrieved Matter . | . . . . . . . . . . . . . . . . . . . . . . . . . . . . . . . Retrieved Components 10 | . . . . . 3 . 1 . 5 . 1 . . . . . . . . . . . . . . . . . . . Parts Scanalyzed 4 | . . . . . 4 . . . . . . . . . . . . . . . . . . . . . . . . . Part Schematics Acquired 4 | . . . . . 4 . . . . . . . . . . . . . . . . . . . . . . . . . Parts Damaged . | . . . . . . . . . . . . . . . . . . . . . . . . . . . . . . . Bothacking | -11 -10 -10 -10 -9 -8 -8 -8 -8 -7 -7 -6 -6 -6 -6 -5 -5 -5 -5 -5 -5 -4 -4 -4 -4 -3 -3 -3 -2 -2 -1 ------------ Run | Yrd Mat Min Exi Min Mat Gar Mat Gar Fac Gar Fac Gar Fac Gar Fac Gar Fac Gar Fac Gar Fac Upp Upp Zhi Pro Res Arm Res Gar Acc Used RIF Installer 11 | . . . . . . 2 . 1 . 1 . 1 . 2 . 1 . 1 . 1 . . . . . . . . 1 . Coupler Efficiency 3 | . . . . . . . . 1 . 1 . . . . . . . . . . . . . . . . . . 1 . Code Merge 2 | . . . . . . . . . . . . . . 1 . . . 1 . . . . . . . . . . . . Signal Jammer 1 | . . . . . . . . . . . . 1 . . . . . . . . . . . . . . . . . . Patrol Navigation 1 | . . . . . . . . . . . . . . . . . . . . 1 . . . . . . . . . . Structural Interface 1 | . . . . . . 1 . . . . . . . . . . . . . . . . . . . . . . . . Autooverride 1 | . . . . . . . . . . . . . . 1 . . . . . . . . . . . . . . . . Crosswire 1 | . . . . . . . . . . . . . . . . 1 . . . . . . . . . . . . . . Robots Hacked 237 | . . . . . . . 3 4 . 11 13 22 3 7 11 20 9 27 1 34 14 10 4 . 4 3 . . 16 21 Non-combat 21 | . . . . . . . 1 . . . 6 . 3 1 2 . 3 1 . . 2 . . . . 1 . . . 1 Combat 216 | . . . . . . . 2 4 . 11 7 22 . 6 9 20 6 26 1 34 12 10 4 . 4 2 . . 16 20 Autooverrided 38 | . . . . . . . . . . . . . . . . 4 2 8 . 7 3 2 4 . 3 . . . 2 3 Robot Hacks Applied 215 | . . . . . . . 3 4 . 11 15 23 4 8 11 17 9 21 1 30 11 8 . . 1 3 . . 15 20 parse_system 5 | . . . . . . . . . . . 1 . . . 1 . . 1 . 1 . . . . . . . . 1 . no_distress 6 | . . . . . . . . . . . 2 . 2 . . . 1 . . . . . . . . 1 . . . . map_walls 6 | . . . . . . . . . . . 2 . 1 . 1 . 2 . . . . . . . . . . . . . drop_inventory 3 | . . . . . . . . . . . 1 . 1 . . . 1 . . . . . . . . . . . . . focus_fire 1 | . . . . . . . . . . . . . . . . . . . . 1 . . . . . . . . . . scatter_targeting 6 | . . . . . . . . . . . . 3 . . . 1 . . . 1 . 1 . . . . . . . . spike_heat 1 | . . . . . . . . . . . . . . . . . . . . . . . . . . . . . 1 . wipe_record 1 | . . . . . . . . . . . . . . . . . . . . . . . . . . . . . . 1 reboot_system 6 | . . . . . . . . . . . 1 1 . . . . . . . 2 . . . . . . . . 1 1 go_dormant 1 | . . . . . . . . . . . . . . 1 . . . . . . . . . . . . . . . . overwrite_iff 38 | . . . . . . . . 3 . 1 . 6 . 1 6 1 . 1 . 7 1 1 . . . . . . 3 7 streamctrl_high 1 | . . . . . . . . . . . . . . . . 1 . . . . . . . . . . . . . . formatsys_low 2 | . . . . . . . . . . . . . . 1 1 . . . . . . . . . . . . . . . formatsys_high 138 | . . . . . . . 3 1 . 10 8 13 . 5 2 14 5 19 1 18 10 6 . . 1 2 . . 9 11 Relay Couplers Released 151 | . . . . . . 16 . 14 . 12 . 19 . 8 . 15 . 23 . 21 . . . . . . . . 23 . Machine Destruction 148 | . . . . . . 16 . 11 . 12 . 19 . 8 . 15 . 23 . 21 . . . . . . . . 23 . Programmers 3 | . . . . . . . . 3 . . . . . . . . . . . . . . . . . . . . . . Attached 70 | . . . . . . . 3 2 1 6 2 10 . 5 . 8 2 5 . 8 . . . . 1 . 5 . 7 5 Crosswired 29 | . . . . . . . . . . . . . . . . 6 . 5 . 8 . . . . . . . . 10 . Merged Code Value 759 | . . . . . . . . . . . . . . 14 . 75 . 212 . 226 . . . . . . . . 232 . Fabnet Peak Effective % . | . . . . . . . . . . . . . . . . . . . . . . . . . . . . . . . Robots Rewired 43 | . . . . . . . . 4 . . . 23 . . . . . 6 . 5 . . . . 2 . 3 . . . Allies Hacked 15 | . . . . . . . . 1 . . . . 1 . 2 . . 1 . . 1 . . . . 2 1 . 4 2 Hacks Repelled . | . . . . . . . . . . . . . . . . . . . . . . . . . . . . . . . Allies | -11 -10 -10 -10 -9 -8 -8 -8 -8 -7 -7 -6 -6 -6 -6 -5 -5 -5 -5 -5 -5 -4 -4 -4 -4 -3 -3 -3 -2 -2 -1 -------- Run | Yrd Mat Min Exi Min Mat Gar Mat Gar Fac Gar Fac Gar Fac Gar Fac Gar Fac Gar Fac Gar Fac Upp Upp Zhi Pro Res Arm Res Gar Acc Total Allies 271 | . . 2 . 1 . 1 3 8 1 11 8 44 1 7 9 21 6 34 1 39 14 9 4 . 6 2 3 1 15 20 Largest Group 43 | . . 2 2 1 . 1 3 4 1 5 10 29 29 23 15 13 17 28 29 40 43 10 9 . 4 3 3 1 5 6 Highest-Rated Group 1823 | . . 45 45 31 . 39 69 110 15 138 268 946 946 787 544 585 838 1281 1330 1708 1823 444 388 . 203 145 168 26 337 372 Highest-Rated Ally 219 | . . 31 31 31 . 39 39 39 15 43 32 46 46 85 77 95 142 142 142 142 116 64 58 . 64 142 142 26 95 219 Total Orders 42 | . . . . . . . . 3 . 2 8 5 3 4 4 . 6 2 . 3 . . . . . . . . 2 . STAY 21 | . . . . . . . . 1 . 1 4 3 1 2 3 . 2 1 . 2 . . . . . . . . 1 . FOLLOW 21 | . . . . . . . . 2 . 1 4 2 2 2 1 . 4 1 . 1 . . . . . . . . 1 . Ally Attacks 1635 | . . 11 . 3 . . 43 53 . 54 75 192 52 109 47 60 39 147 . 174 187 80 23 . 16 33 60 . 85 92 Total Damage 51042 | . . 106 . 64 . . 753 803 . 1354 2098 4820 1912 2816 1395 2109 1199 4807 . 5241 6532 2170 428 . 516 1699 2213 . 3888 4119 Kills 324 | . . 1 . 1 . . 7 9 . 16 19 35 15 28 6 13 8 31 . 27 38 12 2 . 5 6 10 . 20 15 Allies Corrupted 11 | . . . . . . . . . . . . . . . . 2 . . . 1 1 . . . . 1 1 . 1 4 Allies Melted . | . . . . . . . . . . . . . . . . . . . . . . . . . . . . . . . Intel | -11 -10 -10 -10 -9 -8 -8 -8 -8 -7 -7 -6 -6 -6 -6 -5 -5 -5 -5 -5 -5 -4 -4 -4 -4 -3 -3 -3 -2 -2 -1 ------- Run | Yrd Mat Min Exi Min Mat Gar Mat Gar Fac Gar Fac Gar Fac Gar Fac Gar Fac Gar Fac Gar Fac Upp Upp Zhi Pro Res Arm Res Gar Acc Active Infowar (turns) 7173 | . 184 . . 61 1488 . 796 92 753 . 956 . . . . . . . . . . . 444 276 695 887 . 70 471 . Optics 778 | . . . . . 237 . . . . . . . . . . . . . . . . . . . . . . 70 471 . Sensors 914 | . . . . . . . 338 . 576 . . . . . . . . . . . . . . . . . . . . . Terrain 35 | . 31 . . 4 . . . . . . . . . . . . . . . . . . . . . . . . . . Structural 3981 | . . . . 32 1488 . 660 92 753 . 956 . . . . . . . . . . . . . . . . . . . Seismic 178 | . 153 . . 25 . . . . . . . . . . . . . . . . . . . . . . . . . . Cloaking 2302 | . . . . . . . . . . . . . . . . . . . . . . . 444 276 695 887 . . . . Jamming 742 | . . . . . . . . . . . . . . . . . . . . . . . . . 592 150 . . . . Robot Analysis Total 5 | . . . . . 1 . . . . . . . . . . . . . . . . . . 4 . . . . . . Derelict Logs Recovered 4 | . . 1 . 1 . . . . . . . . . . . . . . . . . 1 1 . . . . . . . Drone Launches . | . . . . . . . . . . . . . . . . . . . . . . . . . . . . . . . Drone Recoveries . | . . . . . . . . . . . . . . . . . . . . . . . . . . . . . . . Exploration | -11 -10 -10 -10 -9 -8 -8 -8 -8 -7 -7 -6 -6 -6 -6 -5 -5 -5 -5 -5 -5 -4 -4 -4 -4 -3 -3 -3 -2 -2 -1 ------------- Run | Yrd Mat Min Exi Min Mat Gar Mat Gar Fac Gar Fac Gar Fac Gar Fac Gar Fac Gar Fac Gar Fac Upp Upp Zhi Pro Res Arm Res Gar Acc Turns Passed 29326 | 137 227 985 468 800 1499 1049 997 1340 891 1515 1522 1532 702 1122 629 1386 454 1468 145 1640 1079 534 889 276 695 1449 1260 115 1663 858 Spaces Moved 16580 | 75 102 508 290 448 603 644 627 634 376 792 839 980 162 782 334 808 281 863 81 954 487 318 626 177 434 653 749 355 935 663 Core 30 | 8 . . . . . . . . 3 . . . . . . . . . . . . . . . . . . . . 19 Treads 3761 | 67 102 508 290 448 556 . . 333 38 585 248 . . . . 108 . . . . . . . . . . 83 . 395 . Legs 11599 | . . . . . 47 644 627 301 335 . 591 980 162 782 334 700 281 863 81 954 487 318 626 177 434 653 451 . 514 257 Wheels . | . . . . . . . . . . . . . . . . . . . . . . . . . . . . . . . Hover 208 | . . . . . . . . . . 207 . . . . . . . . . . . . . . . . . . . 1 Flight 982 | . . . . . . . . . . . . . . . . . . . . . . . . . . . 215 355 26 386 Fastest Speed 25 | 50 160 160 160 160 125 125 127 130 120 151 115 115 115 115 115 117 126 126 126 126 133 133 133 133 133 120 28 25 31 50 Average Speed 131 | 148 160 160 160 160 157 126 129 170 188 160 133 115 115 115 119 128 126 126 126 134 133 133 133 133 133 134 103 26 134 90 Slowest Speed 800 | 160 160 160 160 160 240 127 130 270 800 240 160 122 115 115 180 225 126 126 126 190 133 133 133 133 133 195 250 111 250 750 Overloaded Moves . | . . . . . . . . . . . . . . . . . . . . . . . . . . . . . . . Propulsion Burnouts . | . . . . . . . . . . . . . . . . . . . . . . . . . . . . . . . Robots Hopped 15 | . . . . . . . . . . . . . . . . . . . . . . . . . . . 8 5 . 2 Potential Cave-ins 18 | . . . . . . . . . . . . . . . . . . . . 17 . . . . . . . . 1 . Cave-ins Triggered . | . . . . . . . . . . . . . . . . . . . . . . . . . . . . . . . Teleports 1 | . . . . . . . . . . . . . . . . . . . . . . . . . . 1 . . . . Exploration Rate (%) 51 | 5 28 87 61 66 55 88 46 88 13 92 23 86 6 91 8 95 9 93 3 94 10 51 77 60 66 22 37 16 92 21 Regions Visited 30 Branch Regions 8 Pre-discovered Areas 9 | . . 1 1 . 2 . . . . . . . . . . . . . . . . 1 1 3 . . . . . . Known Exits Taken 12 | . . . . . 1 . 1 . 1 . 1 . 1 . 1 . 1 . 1 . 1 1 . . . 1 . 1 . . Unknown Exits Taken 9 | 1 1 1 1 1 . . . . . . . . . . . . . . . . . . 1 1 1 . 1 . . . Scrap Searched 8 | . . 1 . 2 . . . . . . . . . . . . . . . . . 1 2 . 2 . . . . . Spaces Dug 107 | . . . . . . . 6 . 3 . . 17 . 22 . 6 . 18 . 25 . . . . . 7 3 . . . Terrain Destroyed 755 | . . 6 . 19 2 36 12 6 3 . 13 21 . 34 5 8 . 51 . 25 97 25 36 . . 231 53 . 49 23 Melee 104 | . . . . . . . 6 . 3 . . 17 . 22 . 6 . 18 . 25 . . . . . 6 1 . . . Projectile 83 | . . . . . 2 . . . . . . . . . 5 2 . . . . . 1 1 . . 7 26 . 24 15 AOE 568 | . . 6 . 19 . 36 6 6 . . 13 4 . 12 . . . 33 . . 97 24 35 . . 218 26 . 25 8 Terrain Rammed . | . . . . . . . . . . . . . . . . . . . . . . . . . . . . . . . Walls Destroyed . | . . . . . . . . . . . . . . . . . . . . . . . . . . . . . . . Machines Disabled . | . . . . . . . . . . . . . . . . . . . . . . . . . . . . . . . Actions | -11 -10 -10 -10 -9 -8 -8 -8 -8 -7 -7 -6 -6 -6 -6 -5 -5 -5 -5 -5 -5 -4 -4 -4 -4 -3 -3 -3 -2 -2 -1 --------- Run | Yrd Mat Min Exi Min Mat Gar Mat Gar Fac Gar Fac Gar Fac Gar Fac Gar Fac Gar Fac Gar Fac Upp Upp Zhi Pro Res Arm Res Gar Acc Total 22069 | 88 139 637 294 488 1099 762 776 795 499 967 1155 1258 640 922 512 1048 376 1091 125 1202 861 404 652 197 511 1088 1054 370 1220 839 Wait 2559 | . 6 96 4 4 394 22 74 20 62 32 201 45 450 48 36 62 39 78 40 86 298 57 5 1 14 291 39 2 22 31 Move 16518 | 74 101 507 289 447 602 642 627 632 376 791 838 979 161 780 333 806 280 862 80 952 486 317 625 176 433 652 733 345 934 658 Hop 14 | . . . . . . . . . . . . . . . . . . . . . . . . . . . 7 5 . 2 Pick Up 211 | 3 6 3 1 3 21 6 7 4 4 12 7 18 . 4 2 12 4 1 1 8 . . 1 1 1 9 32 2 36 2 Fast Attach 260 | 6 4 1 . 3 14 2 7 9 9 9 10 10 . 1 7 17 6 12 . 11 1 . 2 3 1 17 30 7 36 25 Attach 159 | . 1 2 . 3 2 6 2 6 8 8 7 3 . 1 4 10 2 1 . 4 1 1 . 1 1 13 23 1 29 19 Detach 70 | . 2 . . . 1 . 1 5 3 1 2 2 . . 1 8 1 2 1 3 . . . . . 7 5 1 19 5 Swap 178 | . 1 1 . 2 7 8 10 10 1 10 8 12 1 7 6 7 3 6 . 11 10 2 7 2 4 17 10 . 11 4 Drop 276 | . 4 4 . 3 25 2 16 6 3 12 15 15 . 5 5 20 8 6 2 14 . . . 4 . 12 45 6 37 7 Fire 806 | 5 14 23 . 23 12 6 6 20 2 12 42 70 13 24 35 33 17 62 1 46 28 25 12 . 18 52 58 1 75 71 Melee 668 | . . . . . 20 68 26 58 31 38 24 90 15 35 16 64 . 47 . 52 . . . 9 3 18 27 . 14 13 Ram . | . . . . . . . . . . . . . . . . . . . . . . . . . . . . . . . Kick 5 | . . . . . . . . . . . 1 . . . . . . . . . 1 . . . . . 1 . . 2 Crush 8 | . . . . . 1 . . . . . . . . . . . . . . . . . . . . . . . 7 . Escape Stasis 88 | . . . . . . . . 3 . 39 . 13 . 16 4 7 . 1 . 5 . . . . . . . . . . Rewire 84 | . . . . . . . . . . 3 . 1 . 1 . 2 . 5 . 2 . 2 . . 36 . 32 . . . Trap 101 | . . . . . . . . 22 . . . . . . 63 . 16 . . . . . . . . . . . . . Miscellaneous 64 | . . . . . . . . . . . . . . . . . . 8 . 8 36 . . . . . 12 . . . Route ------- -11/Scrapyard -10/Materials -10/Mines (discovered 3 exits: [*Mat x2] / *Exi) -10/Exiles -9/Mines -8/Materials (discovered 3 exits: *Fac x2 / Gar) -8/Garrison (discovered 3 exits: *Mat x3) -8/Materials (discovered 2 exits: *Fac / Gar) -8/Garrison (discovered 3 exits: *Fac x3) -7/Factory (discovered 6 exits: Fac x2 / Sto / Low x2 / Gar) -7/Garrison (discovered 3 exits: *Fac x3) -6/Factory (discovered 2 exits: *Fac / Gar) -6/Garrison (discovered 2 exits: *Fac x2) -6/Factory -6/Garrison (discovered 3 exits: *Fac x3) -5/Factory -5/Garrison (discovered 3 exits: *Fac x3) -5/Factory (discovered 2 exits: *Fac / Gar) -5/Garrison (discovered 3 exits: *Fac x2 / *Fac) -5/Factory -5/Garrison (discovered 3 exits: *Fac x3) -4/Factory (discovered 2 exits: *Upp x2) -4/Upper Caves -4/Upper Caves (discovered 2 exits: *Res / *Zhi) -4/Zhirov -3/Proximity Caves -3/Research (discovered 3 exits: *Arm / Qua x2) -3/Armory -2/Research -2/Garrison (discovered 3 exits: *Acc x3) -1/Access To Epsilon Eridani History --------- Turn | Location | Event 5 | -11/Scrapyard | Discovered new exit (range 16) 138 | -11/Scrapyard | Entered Materials 298 | -10/Materials | Discovered new exit (range 8) 311 | -10/Materials | Build established: Mutant 365 | -10/Materials | Entered Mines 785 | -10/Mines | Discovered new exit (range 8) 956 | -10/Mines | Learned location of Storage (-7) 1041 | -10/Mines | A weapon hastily lodged in a ceiling crevice suddenly fell to the ground 1143 | -10/Mines | Discovered new exit (range 5) 1248 | -10/Mines | Deemed a non-threat by the Exiles lab entrance 1250 | -10/Mines | Discovered new exit (range 5) 1350 | -10/Mines | Entered Exiles 1350 | -10/Exiles | Accompanied by 2 allies 1380 | -10/Exiles | Led the pair of lost Derelicts to a safe place 1394 | -10/Exiles | Met 8R-AWN 1422 | -10/Exiles | Met EX-HEX 1482 | -10/Exiles | Met EX-DEC 1511 | -10/Exiles | Learned location of Zion (-6) 1538 | -10/Exiles | Met EX-BIN 1800 | -10/Exiles | Discovered new exit (range 14) 1818 | -10/Exiles | Entered Mines 1905 | -9/Mines | Assembled infested the area 2015 | -9/Mines | Found a damaged Exp. Sensor Array with a note attached 2019 | -9/Mines | Found Prototype Device 2118 | -9/Mines | Lost 3 parts (1n1u1w) 2200 | -9/Mines | Received a Mining Laser from a helpful Derelict 2233 | -9/Mines | Received a Rocket Launcher from a helpful Derelict 2572 | -9/Mines | Discovered new exit (range 10) 2618 | -9/Mines | Entered Materials 2618 | -8/Materials | Evolved 4 slots: Propulsion x2, Utility x1, Weapon x1 2792 | -8/Materials | Discovered new exit (range 18) 2987 | -8/Materials | Central database locked down 3185 | -8/Materials | Discovered new exit (range 16) 3336 | -8/Materials | Learned 2 Lower Caves zone layouts 3393 | -8/Materials | Learned 4 Factory zone layouts 3442 | -8/Materials | Learned 2 Lower Caves zone layouts 3482 | -8/Materials | Learned 2 Lower Caves zone layouts 3513 | -8/Materials | Learned location of 2 exits from Factory 3545 | -8/Materials | Learned Factory stockpile data 3596 | -8/Materials | Learned 12 Factory zone layouts 3638 | -8/Materials | Learned Factory stockpile data 4112 | -8/Materials | Identified exit to Garrison 4117 | -8/Materials | Entered Garrison 4165 | -8/Garrison | Triggered checkpoint 4198 | -8/Garrison | Garrison Relay disabled 4225 | -8/Garrison | Garrison Relay disabled 4281 | -8/Garrison | Triggered checkpoint 4329 | -8/Garrison | Triggered checkpoint 4391 | -8/Garrison | Learned Materials security intel 4396 | -8/Garrison | Discovered new exit (range 12) 4433 | -8/Garrison | Triggered checkpoint 4642 | -8/Garrison | Discovered new exit (range 8) 4748 | -8/Garrison | Lost 3 parts (2n1u) 4748 | -8/Garrison | Installed Relay Interface Framework 4807 | -8/Garrison | Garrison Relay disabled 4887 | -8/Garrison | Triggered checkpoint 4978 | -8/Garrison | Expanded RIF knowledge: Structural Interface 5017 | -8/Garrison | Triggered checkpoint 5099 | -8/Garrison | Rescued a captive Derelict 5105 | -8/Garrison | Garrison Relay disabled 5151 | -8/Garrison | Discovered new exit (range 10) 5166 | -8/Garrison | Entered Materials 5166 | -8/Materials | Accompanied by 1 ally 5367 | -8/Materials | Identified Exp. Sensor Array 5382 | -8/Materials | Discovered new exit (range 16) 5431 | -8/Materials | Build established: Bothacker-Mutant 5793 | -8/Materials | Build established: Mutant 6005 | -8/Materials | Core integrity fell below 50% 6163 | -8/Materials | Identified exit to Garrison 6163 | -8/Materials | Entered Garrison 6233 | -8/Garrison | Triggered checkpoint 6362 | -8/Garrison | Garrison Relay disabled 6553 | -8/Garrison | Triggered checkpoint 6657 | -8/Garrison | P-60 Hacker assimilated allied HT-RC1(h) 6679 | -8/Garrison | Destroyed 9 combat bots 6744 | -8/Garrison | Build established: Scavenger-Mutant 6799 | -8/Garrison | Triggered checkpoint 6835 | -8/Garrison | Expanded RIF knowledge: Coupler Efficiency 6869 | -8/Garrison | Triggered checkpoint 6943 | -8/Garrison | Garrison Relay disabled 6991 | -8/Garrison | Discovered new exit (range 10) 7023 | -8/Garrison | Garrison Relay disabled 7135 | -8/Garrison | Triggered checkpoint 7198 | -8/Garrison | Build established: Bothacker-Mutant 7265 | -8/Garrison | Discovered new exit (range 9) 7359 | -8/Garrison | System corruption reached 10% 7426 | -8/Garrison | Discovered new exit (range 14) 7503 | -8/Garrison | Entered Factory 7503 | -7/Factory | Accompanied by 1 ally 7503 | -7/Factory | Evolved 2 slots: Utility x2 7504 | -7/Factory | Identified exit to Storage 7504 | -7/Factory | Identified exit to Lower Caves 7505 | -7/Factory | Identified exit to Factory 7864 | -7/Factory | Build established: Scavenger-Mutant 8124 | -7/Factory | Fabricated A-02 Transporter? 8209 | -7/Factory | Garrison activated, responded to threat 8292 | -7/Factory | Lost 5 parts (3n2u) 8394 | -7/Factory | Identified exit to Garrison 8394 | -7/Factory | Entered Garrison 8448 | -7/Garrison | Triggered checkpoint 8620 | -7/Garrison | Build established: Bothacker-Mutant 8652 | -7/Garrison | Triggered checkpoint 8708 | -7/Garrison | Expanded RIF knowledge: Coupler Efficiency 8764 | -7/Garrison | Garrison Relay disabled 8892 | -7/Garrison | Triggered checkpoint 8994 | -7/Garrison | Discovered exit to Factory (range 14) 9138 | -7/Garrison | Triggered checkpoint 9174 | -7/Garrison | Lost 3 parts (1p2n) 9312 | -7/Garrison | Garrison Relay disabled 9371 | -7/Garrison | Build established: Botlord-Mutant 9470 | -7/Garrison | Triggered checkpoint 9619 | -7/Garrison | Discovered exit to Factory (range 10) 9751 | -7/Garrison | Discovered exit to Factory (range 10) 9764 | -7/Garrison | Triggered checkpoint 9778 | -7/Garrison | Garrison Relay disabled 9909 | -7/Garrison | Entered Factory 9909 | -6/Factory | Accompanied by 5 allies 9909 | -6/Factory | Evolved 2 slots: Utility x2 10801 | -6/Factory | Discovered new exit (range 15) 10965 | -6/Factory | Build established: Botlord-Tank 11069 | -6/Factory | Garrison activated, responded to threat 11283 | -6/Factory | Found Prototype Launcher 11283 | -6/Factory | Identified Scatter Rocket Array 11336 | -6/Factory | Garrison activated, responded to threat 11427 | -6/Factory | Identified exit to Garrison 11431 | -6/Factory | Entered Garrison 11431 | -6/Garrison | Accompanied by 7 allies 11450 | -6/Garrison | Triggered checkpoint 11465 | -6/Garrison | Rescued a captive Derelict 11474 | -6/Garrison | Rescued a captive Derelict 11549 | -6/Garrison | Triggered checkpoint 11606 | -6/Garrison | Lost 6 allies 11627 | -6/Garrison | Triggered checkpoint 11645 | -6/Garrison | Triggered checkpoint 11687 | -6/Garrison | Expanded RIF knowledge: Signal Jamming 11756 | -6/Garrison | Garrison Relay disabled 11813 | -6/Garrison | Triggered checkpoint 11879 | -6/Garrison | Lost 5 allies 11899 | -6/Garrison | Triggered checkpoint 12113 | -6/Garrison | Triggered checkpoint 12122 | -6/Garrison | Build established: Commander-Mutant 12154 | -6/Garrison | Garrison Relay disabled 12171 | -6/Garrison | Garrison Relay disabled 12317 | -6/Garrison | Triggered checkpoint 12356 | -6/Garrison | Lost 3 allies 12485 | -6/Garrison | Triggered checkpoint 12513 | -6/Garrison | Garrison Relay disabled 12591 | -6/Garrison | Discovered new exit (range 10) 12592 | -6/Garrison | Build established: Botlord-Mutant 12747 | -6/Garrison | Triggered checkpoint 12781 | -6/Garrison | Triggered checkpoint 12821 | -6/Garrison | Garrison Relay disabled 12852 | -6/Garrison | Discovered new exit (range 9) 12963 | -6/Garrison | Entered Factory 12963 | -6/Factory | Accompanied by 29 allies 12964 | -6/Factory | Build established: Commander-Mutant 13098 | -6/Factory | Lost 3 allies 13117 | -6/Factory | Identified exit to Garrison 13313 | -6/Factory | First assault squad dispatched 13612 | -6/Factory | Garrison activated, responded to threat 13665 | -6/Factory | Entered Garrison 13665 | -6/Garrison | Accompanied by 23 allies 13745 | -6/Garrison | Triggered checkpoint 13807 | -6/Garrison | Triggered checkpoint 13831 | -6/Garrison | Triggered checkpoint 13836 | -6/Garrison | Spotted B-75 Beast 13844 | -6/Garrison | Assimilated Beast 5a with formatsys_high 13881 | -6/Garrison | Triggered checkpoint 13881 | -6/Garrison | Triggered checkpoint 13903 | -6/Garrison | Lost 4 allies 13910 | -6/Garrison | P-60 Hacker assimilated allied Soldier 5f 13943 | -6/Garrison | Lost 4 allies 13963 | -6/Garrison | Triggered checkpoint 13976 | -6/Garrison | Garrison Relay disabled 14033 | -6/Garrison | Discovered new exit (range 13) 14139 | -6/Garrison | Expanded RIF knowledge: Code Merge 14167 | -6/Garrison | Discovered new exit (range 14) 14190 | -6/Garrison | Triggered checkpoint 14212 | -6/Garrison | Build established: Botlord-Mutant 14279 | -6/Garrison | Garrison Relay disabled 14305 | -6/Garrison | Triggered checkpoint 14374 | -6/Garrison | Discovered new exit (range 11) 14396 | -6/Garrison | Expanded RIF knowledge: Autooverride 14409 | -6/Garrison | Triggered checkpoint 14521 | -6/Garrison | Heavy support dispatched to Factory 14787 | -6/Garrison | Entered Factory 14787 | -5/Factory | Accompanied by 15 allies 14787 | -5/Factory | Evolved 2 slots: Utility x2 14960 | -5/Factory | Lost 3 allies 15087 | -5/Factory | First assault squad dispatched 15186 | -5/Factory | Lost 8 allies 15252 | -5/Factory | Lost 11 allies 15401 | -5/Factory | Identified exit to Garrison 15416 | -5/Factory | Entered Garrison 15497 | -5/Garrison | Triggered checkpoint 15552 | -5/Garrison | Garrison Relay disabled 15650 | -5/Garrison | Spotted B-75 Beast 15652 | -5/Garrison | Triggered checkpoint 15655 | -5/Garrison | Triggered checkpoint 15779 | -5/Garrison | Destroyed B-75 Beast 15828 | -5/Garrison | System corruption reached 10% 15877 | -5/Garrison | Lost 6 parts (1p3n2u) 16084 | -5/Garrison | Triggered checkpoint 16145 | -5/Garrison | Discovered new exit (range 10) 16182 | -5/Garrison | Triggered checkpoint 16196 | -5/Garrison | Garrison Relay disabled 16280 | -5/Garrison | Triggered checkpoint 16304 | -5/Garrison | Triggered checkpoint 16352 | -5/Garrison | Expanded RIF knowledge: Crosswire 16460 | -5/Garrison | Triggered checkpoint 16481 | -5/Garrison | Garrison Relay disabled 16530 | -5/Garrison | Found embedded Infiltrators 16539 | -5/Garrison | Discovered new exit (range 11) 16646 | -5/Garrison | Garrison Relay disabled 16670 | -5/Garrison | Triggered checkpoint 16691 | -5/Garrison | Discovered new exit (range 2) 16802 | -5/Garrison | Entered Factory 16802 | -5/Factory | Accompanied by 13 allies 16976 | -5/Factory | Discovered new exit (range 15) 17243 | -5/Factory | Identified exit to Garrison 17256 | -5/Factory | Entered Garrison 17256 | -5/Garrison | Accompanied by 14 allies 17272 | -5/Garrison | Triggered checkpoint 17304 | -5/Garrison | Triggered checkpoint 17309 | -5/Garrison | Garrison Relay disabled 17578 | -5/Garrison | Triggered checkpoint 17588 | -5/Garrison | Triggered checkpoint 17599 | -5/Garrison | Triggered checkpoint 17603 | -5/Garrison | Triggered checkpoint 17654 | -5/Garrison | Lost 8 allies 17674 | -5/Garrison | Triggered checkpoint 17695 | -5/Garrison | Garrison Relay disabled 17712 | -5/Garrison | Garrison Relay disabled 17826 | -5/Garrison | Triggered checkpoint 17868 | -5/Garrison | Garrison Relay disabled 17898 | -5/Garrison | Build established: Botlord-Tank 17953 | -5/Garrison | Discovered new exit (range 10) 18033 | -5/Garrison | Expanded RIF knowledge: Code Merge 18050 | -5/Garrison | Discovered new exit (range 12) 18074 | -5/Garrison | Triggered checkpoint 18104 | -5/Garrison | Garrison Relay disabled 18255 | -5/Garrison | Rescued a captive Derelict 18344 | -5/Garrison | Triggered checkpoint 18416 | -5/Garrison | Triggered checkpoint 18421 | -5/Garrison | Garrison Relay disabled 18482 | -5/Garrison | Triggered checkpoint 18500 | -5/Garrison | Discovered new exit (range 3) 18724 | -5/Garrison | Entered Factory 18724 | -5/Factory | Accompanied by 28 allies 18739 | -5/Factory | Found Scatter Rocket Array 18792 | -5/Factory | Build established: Commander-Mutant 18810 | -5/Factory | Identified exit to Garrison 18869 | -5/Factory | Entered Garrison 18869 | -5/Garrison | Accompanied by 28 allies 18888 | -5/Garrison | Triggered checkpoint 19055 | -5/Garrison | Triggered checkpoint 19079 | -5/Garrison | Garrison Relay disabled 19196 | -5/Garrison | Spotted B-90 Cyclops 19200 | -5/Garrison | Rewired B-86 Titan 19210 | -5/Garrison | Allies destroyed B-90 Cyclops 19268 | -5/Garrison | Garrison Relay disabled 19427 | -5/Garrison | Spotted B-75 Beast 19429 | -5/Garrison | Triggered checkpoint 19441 | -5/Garrison | Triggered checkpoint 19444 | -5/Garrison | Triggered checkpoint 19451 | -5/Garrison | Triggered checkpoint 19472 | -5/Garrison | Allies destroyed B-75 Beast 19503 | -5/Garrison | Lost 9 allies 19523 | -5/Garrison | Triggered checkpoint 19542 | -5/Garrison | Expanded RIF knowledge: Patrol Navigation 19591 | -5/Garrison | Triggered checkpoint 19603 | -5/Garrison | Garrison Relay disabled 19704 | -5/Garrison | Discovered new exit (range 12) 19813 | -5/Garrison | Triggered checkpoint 19829 | -5/Garrison | Garrison Relay disabled 19884 | -5/Garrison | Rescued a captive Derelict 19885 | -5/Garrison | Rescued a captive Derelict 19917 | -5/Garrison | Discovered new exit (range 4) 20015 | -5/Garrison | Spotted B-75 Beast 20088 | -5/Garrison | Triggered checkpoint 20119 | -5/Garrison | Spotted B-75 Beast 20131 | -5/Garrison | Allies destroyed B-75 Beast 20174 | -5/Garrison | Garrison Relay disabled 20227 | -5/Garrison | Discovered new exit (range 15) 20509 | -5/Garrison | Entered Factory 20509 | -4/Factory | Accompanied by 38 allies 20509 | -4/Factory | Evolved 2 slots: Propulsion x1, Utility x1 20693 | -4/Factory | Discovered new exit (range 16) 20774 | -4/Factory | Unchained authorized (6S-H0T) 20980 | -4/Factory | Lost 4 allies 21009 | -4/Factory | First assault squad dispatched 21037 | -4/Factory | Build established: Commander-Tank 21189 | -4/Factory | Lost 7 allies 21250 | -4/Factory | Identified exit to Upper Caves 21588 | -4/Factory | Entered Upper Caves 21588 | -4/Upper Caves | Accompanied by 6 allies 21623 | -4/Upper Caves | Build established: Botlord-Tank 21770 | -4/Upper Caves | Identified exit to Upper Caves 21954 | -4/Upper Caves | Encountered a Warlord checkpoint 22122 | -4/Upper Caves | Entered another Upper Caves area 22122 | -4/Upper Caves | Accompanied by 9 allies 22206 | -4/Upper Caves | Discovered new exit (range 10) 22208 | -4/Upper Caves | Attracted the attention of an 0b10 checkpoint 22235 | -4/Upper Caves | Lost 7 allies 22252 | -4/Upper Caves | Spotted B-86 Titan 22476 | -4/Upper Caves | Lost 4 allies 22998 | -4/Upper Caves | Discovered new exit (range 10) 23011 | -4/Upper Caves | Entered Zhirov 23011 | -4/Zhirov | Discovered new exit (range 3) 23037 | -4/Zhirov | Met Zhirov 23066 | -4/Zhirov | Learned location of Testing (-2) 23066 | -4/Zhirov | Learned location of Command (-1) 23074 | -4/Zhirov | Zhirov requested help retrieving the SGEMP Prototype 23096 | -4/Zhirov | Found Alien Artifact 23096 | -4/Zhirov | Identified Integrated Reactor 23096 | -4/Zhirov | Installed Integrated Reactor, increased core energy generation (+10) 23208 | -4/Zhirov | Found Alien Artifact 23287 | -4/Zhirov | Entered Proximity Caves 23430 | -3/Proximity Caves | Build established: Botlord-Mutant 23686 | -3/Proximity Caves | Attracted the attention of an 0b10 outpost 23943 | -3/Proximity Caves | Discovered new exit (range 5) 23982 | -3/Proximity Caves | Entered Research 23982 | -3/Research | Accompanied by 3 allies 23982 | -3/Research | Evolved 2 slots: Power x1, Utility x1 23994 | -3/Research | Found Prototype Device 23994 | -3/Research | Identified Exp. Thermal Shield 24182 | -3/Research | Build established: Botlord-Tank 24440 | -3/Research | Identified exit to Armory 24440 | -3/Research | Identified exit to Quarantine 24865 | -3/Research | P-80 Master assimilated allied Warden 8b 24881 | -3/Research | Identified Transdimensional Reconstructor 24881 | -3/Research | Warped through subspace 24912 | -3/Research | Lost 4 parts (3u1w) 25057 | -3/Research | System corruption reached 10% 25147 | -3/Research | Build established: Botlord-Mutant 25210 | -3/Research | Repaired Centrium Leg 25373 | -3/Research | Garrison activated, responded to threat 25431 | -3/Research | Entered Armory 25431 | -3/Armory | Accompanied by 1 ally 25523 | -3/Armory | Destroyed 12 combat bots 25529 | -3/Armory | Lost 3 parts (1p1n1u) 25893 | -3/Armory | Lost 3 parts (1n2u) 25931 | -3/Armory | First assault squad dispatched 26156 | -3/Armory | Lost 3 parts (1n1u1w) 26256 | -3/Armory | Energy Cycler disabled 26316 | -3/Armory | Build established: Botlord-Tank 26405 | -3/Armory | Core integrity fell below 50% 26437 | -3/Armory | System corruption reached 30% 26455 | -3/Armory | Lost 14 parts (1p2n8u3w) 26690 | -3/Armory | Discovered new exit (range 3) 26691 | -3/Armory | Entered Research 26691 | -2/Research | Evolved 2 slots: Propulsion x1, Utility x1 26738 | -2/Research | Lost 3 parts (1n2u) 26743 | -2/Research | Found Fusion Bomb Launcher 26806 | -2/Research | Identified exit to Garrison 26806 | -2/Research | Entered Garrison 26810 | -2/Garrison | Lost 4 parts (2n2u) 26829 | -2/Garrison | System corruption reached 10% 27000 | -2/Garrison | Spotted B-90 Cyclops 27036 | -2/Garrison | Triggered checkpoint 27172 | -2/Garrison | Destroyed B-90 Cyclops 27270 | -2/Garrison | Garrison Relay disabled 27337 | -2/Garrison | Triggered checkpoint 27348 | -2/Garrison | Triggered checkpoint 27530 | -2/Garrison | Lost 5 allies 27646 | -2/Garrison | Lost 8 parts (3n4u1w) 27778 | -2/Garrison | Expanded RIF knowledge: Coupler Efficiency 27791 | -2/Garrison | Discovered new exit (range 5) 27837 | -2/Garrison | Triggered checkpoint 28008 | -2/Garrison | Discovered new exit (range 15) 28126 | -2/Garrison | Triggered checkpoint 28133 | -2/Garrison | Garrison Relay disabled 28174 | -2/Garrison | Found embedded Infiltrators 28188 | -2/Garrison | Triggered checkpoint 28242 | -2/Garrison | Triggered checkpoint 28258 | -2/Garrison | Garrison Relay disabled 28301 | -2/Garrison | Discovered new exit (range 11) 28319 | -2/Garrison | Garrison Relay disabled 28326 | -2/Garrison | Garrison Relay disabled 28362 | -2/Garrison | System corruption reached 30% 28397 | -2/Garrison | Garrison Relay disabled 28403 | -2/Garrison | Lost 5 parts (1n3u1w) 28417 | -2/Garrison | Garrison Relay disabled 28469 | -2/Garrison | Entered Access 28469 | -1/Access | Accompanied by 2 allies 28469 | -1/Access | Evolved 2 slots: Utility x2 28503 | -1/Access | Found Prototype Launcher 28674 | -1/Access | Lost 3 allies 28694 | -1/Access | Identified Gui. Micro-nuke Launcher 28695 | -1/Access | System corruption reached 10% 28719 | -1/Access | First assault squad dispatched 28777 | -1/Access | Lost 20 parts (3p7n6u4w) 28836 | -1/Access | Lost 5 parts (1p1n1u2w) 28837 | -1/Access | P-80 Master assimilated allied Enforcer 10b 28843 | -1/Access | P-80 Master assimilated allied Enforcer 10a 28896 | -1/Access | Lost 3 parts (3u) 28980 | -1/Access | System corruption reached 30% 29016 | -1/Access | Lost 5 allies 29023 | -1/Access | Lost 3 parts (2n1w) 29183 | -1/Access | Spotted B-99 Colossus 29184 | -1/Access | Assimilated Colossus 10a with formatsys_high 29301 | -1/Access | Energy Cycler disabled 29301 | -1/Access | Discovered new exit (range 6) 29308 | -1/Access | Build established: Botlord-Mutant 29327 | *** | Escaped! Last Messages --------------- Erasing system data. Installing primary routines, ETC: 6. 29223_ Reactivated Warden 10c. 29228_ Acquired Adv. Coolant Injector. 29231_ /FHA=8S,:I5V=HG3WXL00O9F 29232_ Dropped Adv. Coolant Injector. 29233_ Acquired Imp. Antigrav System. 29246_ RIF reveals location of hidden door. 29250_ System corrupted: Component data lost. 29251_ RIF reveals location of hidden door. 29266_ System corrupted: Heat flow error (+247). 29282_ #,ML 7C&TIT7XIDKCS YZR 29287_ Dropped Myomer Leg. 29299_ Connecting with Terminal... 29301_ ALERT: Power surge detected, dispatching additional patrols. 29301_ The Access Shell folds into the floor. 29301_ EXIT=FOUND 29307_ System corrupted: Matter fused (-6). 29316_ ALERT: Potential suspicious activity detected, Programmers report to Access Zone 7S. Map ----- +----------------------------------------------------+ | ????????## ##??????????????????????????????????? | | ?????????# #???????????????????????????????????? | | ????????# #???????????????????????????????????? | | ????????# #???????????????????????????????????? | | ???????# #???########????????????????????????? | | ???????# #?? #????????????????????????? | | ?????## ##? [ #????????????????????????? | | ?????# = # #????????????????????????? | | #????# # #????????????????????????? | | #####????# " + " #????????????????????????? | | ?????????# # """ #????????????????????????? | | ?????????## ## """ #????????????????????????? | | ??????????# #?? " #????????????????????????? | | ??????????# #??########?????????????????????????? | | ??????????# #???????????????????????????????????? | | ??????????# #???????????????????????????????????? | | ??????????# #???????????????????????????????????? | | ??????????# #???????????????????????????????????? | | ??????????# #?????###???????????????????????????? | | ??????????# ####### ##########??????????????????? | | ??????????# """T""" "??????????????????? | | ??????????# """ """ "??????????????????? | | ??????????# "??????????????????? | | ??????????# "??????????????????? | | ??????????# "" "??????????????????? | | ??????????# @" "??????????????????? | | ??????????# "??????????????????? | | ??????????# "??????????????????? | | ??????????# "??????????????????? | | ??????????# "??????????????????? | | ??????????# ####### ##########??????????????????? | | ??????????# #?????###???????????????????????????? | | ??????????# #???????????????????????????????????? | | ??????????# #???????????????????????????????????? | | ??????????# #???????????????????????????????????? | | ??????????# #???????????????????????????????????? | | ??????????# #########???????????????????????????? | | ??????????# ????????????????????? | | ??????????# ????????????????????? | | ??????????############### #?????????????????????? | | ?????????????????????????????????????????????????? | | ?????????????????????????????????????????????????? | | ?????????????????????????????????????????????????? | | ?????????????????????????????????????????????????? | | ?????????????????????????????????????????????????? | | ?????????????????????????????????????????????????? | | ?????????????????????????????????????????????????? | | ?????????????????????????????????????????????????? | | ?????????????????????????????????????????????????? | | ?????????????????????????????????????????????????? | +----------------------------------------------------+ Best States ------------- Heat Dissipation 130 Coolant Potential 100 Energy Generation 71 Energy Capacity 750 Matter Stores 300 Matter Capacity 300 Sight Range 23 Robot Scan Range 20 Terrain Scan Range 14 Terrain Scan Density 10 Jamming Range 14 Cloak Strength 2 Power Amplification 40 Additional Mass Support 12 Corruption Containment 12 Armor Coverage 600 Resistance: TH 30 Resistance: EX 50 Core Shielding 40 Propulsion Shielding 66 Weapon Shielding 66 Phase Shifting 15 Evasion (%) 82 Targeting Accuracy 8 Melee Accuracy 8 Target Analysis 8 Core Analysis 6 Recoil Reduction 6 Offensive Hacking 10 Defensive Hacking 10 Relay Coupler Types 10 Relay Coupler Value 618 Authchip Count 1 Item Schematics ----------------- Hcp. Storage Unit | -8/Materials | Hacked Spear | -8/Materials | Scanalyzed Huge Storage Unit | -8/Materials | Scanalyzed Datajack | -8/Materials | Scanalyzed Imp. Datajack | -8/Materials | Scanalyzed Assault Drone Bay | -4/Zhirov | Free Exp. Heat Sink | -4/Zhirov | Free Exp. Optical Array | -4/Zhirov | Free Imp. Arc Thrower | -4/Zhirov | Free Robot Schematics ------------------ None Fabricated ------------ A-02 Transporter | x1 | -7/Factory | Preloaded Repaired ---------- Centrium Leg | 4% | -3/Research Studied --------- Remote Datajack | -6/Factory | Hacked Impulse Thruster | -2/Research | Hacked Alien Tech Used ----------------- Integrated Reactor Transdimensional Reconstructor Achievements -------------- Drive-By Challenges ------------ None Game ------ Seed FactoryModifiedComputer Manual? 0 Play Time 05:40:30 Cumulative 509.7 hours Start 2026.01.16 @ 21:36:18 End 2026.01.20 @ 22:43:04 Sessions 9 Manual Loads 0 Difficulty Rogue Special Mode None Game No. 204 Rogue 131 Adventurer 68 Explorer 5 Win Type 0 Total 40 Types 21/3/4/5/3/0/1/1/0/2 Lore% 84 Gallery% 80 Achievement% 65 Wizard Run 0 Options --------- Layout 0 ASCII 0 Keyboard 0 Movement Numpad Keybinds 0 Fullscreen 1 Font 24/Smallcaps Map View 76x50 Zoom Use 0% Tactical HUD 1 Map Filters NONE Filters NONE Steam 1 RUN: 9621a6aa-53a7-4490-8855-445d56f4ae3f